{"text_format":"1","workbook":"xlsx","n_sheets":8,"sheets":["Copyright","Cover","Instruction","All Result","Sheet1","FW nonmetal nonplant","FW nonmetal nonplant_WS","FW metal plant_WS"],"not_rendered":{"charts":0,"images":1,"macros":1,"external_links":0,"defined_names":1,"comments":3,"pivot_tables":0},"unopened":[],"bounds":{"document_bytes":16777216,"sheet_cells":100000,"rows_first":2000,"rows_last":500,"rows_between":2000,"halvings":0,"cell_chars":16384,"cell_head_chars":4096},"cells_cut":0,"cells_raw":0,"read":"whole","date_system":"1900"}

{"sheet":"Copyright","index":0,"n_rows":0,"n_cols":0,"rows_kept":0,"cut":false,"hidden":false,"merged":[]}

{"sheet":"Cover","index":1,"n_rows":20,"n_cols":7,"rows_kept":20,"cut":false,"hidden":false,"merged":[[18,6,18,8],[14,6,14,8],[13,6,13,8],[4,4,4,10],[9,6,9,8],[12,6,12,8],[5,5,6,9]]}
[]
[]
[]
[]
[null,null,null,null,"Ecotoxicity Data Quality Assessment Method V2.4"]
[null,null,null,null,null,"To be used to assess the quality of data used for the Australian and New Zealand Guidelines for Fresh and Marine Water Quality (including sediment) and the Australian National Environment Protection (Assessment of Site Contamination) Measure"]
[]
[]
[]
[null,null,null,null,null,null,"Developed by "]
[]
[]
[null,null,null,null,null,null,"Zoe Zhang"]
[null,null,null,null,null,null,"   Dr. Michael Warne"]
[null,null,null,null,null,null,"Alison Vieritz "]
[]
[]
[]
[null,null,null,null,null,null,"Water Quality & Investigations "]
[null,null,null,null,null,"                 Department of Science, Information Technology and Innovation"]

{"sheet":"Instruction","index":2,"n_rows":21,"n_cols":10,"rows_kept":21,"cut":false,"hidden":false,"merged":[[27,6,27,16],[14,6,14,7],[5,4,5,7]]}
[]
[]
[null,"Click here to see \"All Result\" -->","All Result"]
[]
[]
[null,null,null,null,"Freshwater "]
[]
[null,"Tabs contain questionaries -->           ","Freshwater/metal/nonplant",null,"Freshwater/non-metal/non-plant ",null,null,"Freshwater/metal/plant",null,"Freshwater/non-metal/plant"]
[]
[]
[]
[null,"Tabs contain score of paper and short answers to questions -->","Freshwater/metal/nonplant Worksheet",null,"Freshwater/non-metal/non-plant Worksheet",null,null,"Freshwater/metal/plant Worksheet",null,"Freshwater/non-metal/plant/ Worksheet"]
[]
[]
[null,null,"Marine ",null,null,null,"Terrestrial",null,null,"Sediment "]
[]
[null,"Tab contain questionaries -->","Marine or estuarine/non-plant",null,"Marine or estuarine/Plant",null,null,"Terrestrial Data QA",null,"Sediment Data QA"]
[]
[]
[]
[null,"Tab Contains all scores of paper --> ","Marine or estuarine/non-Plant Worksheet",null,"Marine or estuarine/Plant_Worksheet",null,null,"Terrestrial Quality",null,"Sediment Quality"]

{"sheet":"All Result","index":3,"n_rows":43,"n_cols":32,"rows_kept":43,"cut":false,"hidden":false,"merged":[[3,0,3,20]]}
["Chemical:","Alpha-cypermethrin"]
["Medium:","Freshwater"]
[]
["Quality Assessment Scoring Sheets"]
["Category","Paper and data unique identier","Total score","Quality score","Comment ","Species name","Life stage","Exposure duration","Measure of toxicity","Toxicity endpoint","Toxicity value","Taxonomic group","Phylum","Class","Medium","Temperature","Acute or Chronic","pH","Salinity","Citation","Citation No.",null,null,null,null,null,null,null,null,null,null,"Olivia Formulation Check"]
["Freshwater/non-metal/non- plant","695-1",69,0.71399999999999997,"The highest possible grade for this datum is acceptable.","Paratya australiensis","Adult","96 hrs","LC50","Mortality","0.019 ug/L","Macroinvertebrate","Arthropoda","Malacostraca","NA","22.6-24.2oC","Acute ","7.7-7.9","N.A.","Kumar, A. R. Correll, S. Grocke and C. Bajet. 2010. Toxicity of selected pesticides to freshwater shrimp, Paratya australiensis (Decapoda: Atyidae): Use of time series toxicity data to predict chronic lethality. Ecotoxicology and Environmental Safety 73: 360-369.","695"]
["Freshwater/non-metal/non- plant","696-1",91,0.95599999999999996,"The highest possible grade for this datum is acceptable.","Ceriodaphnia dubia","Neonate","48 hrs","LC50","Mortality","0.23 ug/L","Microinvertebrate","Arthropoda","Branchiopoda","Moderately hard water","23-25oC","Acute ","8.0-8.1","N.A.","Shen, M.F., A. Kumar, S.Y. Ding and S. Grocke. 2012. Comparative study on the toxicity of pyrethroids, alpha-cypermethrin and deltamethrin to Ceriodaphnia dubia. Ecotoxicology and Environemental Safety 78: 9-13.","696"]
["Freshwater/non-metal/non- plant","696-2",91,0.95599999999999996,"The highest possible grade for this datum is acceptable.","Ceriodaphnia dubia","Neonate","192 hrs (8 days)","NOEC","Mortality","0.1 ug/L","Microinvertebrate","Arthropoda","Branchiopoda","Moderately hard water","23-25oC","Acute ","8.0-8.1","N.A.","Shen, M.F., A. Kumar, S.Y. Ding and S. Grocke. 2012. Comparative study on the toxicity of pyrethroids, alpha-cypermethrin and deltamethrin to Ceriodaphnia dubia. Ecotoxicology and Environemental Safety 78: 9-13.","696"]
["Freshwater/non-metal/non- plant","696-3",91,0.95599999999999996,"The highest possible grade for this datum is acceptable.","Ceriodaphnia dubia","Neonate","192 hrs (8 days)","LOEC","Mortality","0.25 ug/L","Microinvertebrate","Arthropoda","Branchiopoda","Moderately hard water","23-25oC","Acute ","8.0-8.1","N.A.","Shen, M.F., A. Kumar, S.Y. Ding and S. Grocke. 2012. Comparative study on the toxicity of pyrethroids, alpha-cypermethrin and deltamethrin to Ceriodaphnia dubia. Ecotoxicology and Environemental Safety 78: 9-13.","696"]
["Freshwater/non-metal/non- plant","696-4",91,0.95599999999999996,"The highest possible grade for this datum is acceptable.","Ceriodaphnia dubia","Neonate","192 hrs (8 days)","NOEC","Reproduction","0.05 ug/L","Microinvertebrate","Arthropoda","Branchiopoda","Moderately hard water","23-25oC","Acute ","8.0-8.1","N.A.","Shen, M.F., A. Kumar, S.Y. Ding and S. Grocke. 2012. Comparative study on the toxicity of pyrethroids, alpha-cypermethrin and deltamethrin to Ceriodaphnia dubia. Ecotoxicology and Environemental Safety 78: 9-13.","696"]
["Freshwater/non-metal/non- plant","696-5",91,0.95599999999999996,"The highest possible grade for this datum is acceptable.","Ceriodaphnia dubia","Neonate","192 hrs (8 days)","LOEC","Reproduction","0.1 ug/L","Microinvertebrate","Arthropoda","Branchiopoda","Moderately hard water","23-25oC","Acute ","8.0-8.1","N.A.","Shen, M.F., A. Kumar, S.Y. Ding and S. Grocke. 2012. Comparative study on the toxicity of pyrethroids, alpha-cypermethrin and deltamethrin to Ceriodaphnia dubia. Ecotoxicology and Environemental Safety 78: 9-13.","696"]
["Freshwater/non-metal/non- plant","696-6",91,0.95599999999999996,"The highest possible grade for this datum is acceptable.","Ceriodaphnia dubia","Neonate","192 hrs (8 days)","NOEC","Growth","0.025ug/L","Microinvertebrate","Arthropoda","Branchiopoda","Moderately hard water","23-25oC","Acute ","8.0-8.1","N.A.","Shen, M.F., A. Kumar, S.Y. Ding and S. Grocke. 2012. Comparative study on the toxicity of pyrethroids, alpha-cypermethrin and deltamethrin to Ceriodaphnia dubia. Ecotoxicology and Environemental Safety 78: 9-13.","696"]
["Freshwater/non-metal/non- plant","696-7",91,0.95599999999999996,"The highest possible grade for this datum is acceptable.","Ceriodaphnia dubia","Neonate","192 hrs (8 days)","LOEC","Growth","0.05ug/L","Microinvertebrate","Arthropoda","Branchiopoda","Moderately hard water","23-25oC","Acute ","8.0-8.1","N.A.","Shen, M.F., A. Kumar, S.Y. Ding and S. Grocke. 2012. Comparative study on the toxicity of pyrethroids, alpha-cypermethrin and deltamethrin to Ceriodaphnia dubia. Ecotoxicology and Environemental Safety 78: 9-13.","696"]
["Freshwater/non-metal/non- plant","698-1",75,0.82417582417582413,"The highest possible grade for this datum is acceptable.","Oreochromis niloticus L.","Larvae","96 hrs","LC50","Mortality","3.42 ug/L","Fish","Chordata","Actinopterygii","Aquarium water","22-24oC","Acute ","7.1-7.3","N.A.","Yilmaz, M. 2005. Acute toxicity of alpha-cypermethrin on tilapia (Oreochromis niloticus L.) larvae. Bulletin of Environmental Contamination and Toxicology 74: 880-885.","698"]
["Freshwater/non-metal/non- plant","701-1",70,0.76923076923076927,"The highest possible grade for this datum is acceptable.","Poecilia reticulata","Adult","96 hrs","LC50","Mortality","9.43 ug/L","Fish","Chordata","Actinopterygii","Well water","20-25oC","Acute ",7.20,"N.A.","Yilmaz, M., A. Gul and K. Erbasli. 2004. Acute toxicity of alpha-cypermethrin to guppy (Poecilia reticulata, Pallas, 1859). Chemosphere 56: 381-385.","701"]
["Freshwater/non-metal/non- plant","754-1",77,0.84615384615384615,"","Xenopus laevis","Embryo","96 hrs","LC50","Mortality","30.6 ug/L","Amphibian","Chordata","Amphibia","FETAX solution","22-24oC","Acute ","6.5-8.0","N.A.","Yu, S., M.R. Wages, Q. Cai, J.D. Maul and G.P. Cobb. 2013. Lethal and sublethal effects of three insecticides on two developmental stages of Xenopus laevis and comparison with other amphibians. Environmental Toxicology and Chemistry 32: 2056-2064.","754"]
["Freshwater/non-metal/non- plant","754-2",77,0.84615384615384615,"","Xenopus laevis","Juvenile","96 hrs","LC50","Mortality","6.9 ug/L","Amphibian","Chordata","Amphibia","FETAX solution","22-24oC","Acute ","6.5-8.0","N.A.","Yu, S., M.R. Wages, Q. Cai, J.D. Maul and G.P. Cobb. 2013. Lethal and sublethal effects of three insecticides on two developmental stages of Xenopus laevis and comparison with other amphibians. Environmental Toxicology and Chemistry 32: 2056-2064.","754"]
["Freshwater/non-metal/non- plant","754-3",67,0.73626373626373631,"","Xenopus laevis","Embryo","96 hrs","LOEC","Growth","10 ug/L","Amphibian","Chordata","Amphibia","FETAX solution","22-24oC","Acute ","6.5-8.0","N.A.","Yu, S., M.R. Wages, Q. Cai, J.D. Maul and G.P. Cobb. 2013. Lethal and sublethal effects of three insecticides on two developmental stages of Xenopus laevis and comparison with other amphibians. Environmental Toxicology and Chemistry 32: 2056-2064.","754"]
["Freshwater/non-metal/non- plant","700-1",59,0.64835164835164838,"","Salmo gairdneri","Juvenile","96 hrs","LC50","Mortality","2.8 ug/L","Fish","Chordata","Actinopterygii","Filtered tap water","15oC","Acute ","NA","N.A.","Stephenson R.R. A pyrethroid insecticide for use in rice - effects of formulation on fish toxicity and its assessment. In Pest Management in Rice. 1990. Grayson, B.T., M.B. Green and L.G. Copping (Eds)","700"]
["Freshwater/non-metal/non- plant","700-2",59,0.64835164835164838,"","Salmo gairdneri","Juvenile","96 hrs","LC50","Mortality","5 ug/L","Fish","Chordata","Actinopterygii","Filtered tap water","15oC","Acute ","NA","N.A.","Stephenson R.R. A pyrethroid insecticide for use in rice - effects of formulation on fish toxicity and its assessment. In Pest Management in Rice. 1990. Grayson, B.T., M.B. Green and L.G. Copping (Eds)","700"]
["Freshwater/non-metal/non- plant","700-3",59,0.64835164835164838,"","Salmo gairdneri","Juvenile","96 hrs","LC50","Mortality","240 ug/L","Fish","Chordata","Actinopterygii","Filtered tap water","15oC","Acute ","NA","N.A.","Stephenson R.R. A pyrethroid insecticide for use in rice - effects of formulation on fish toxicity and its assessment. In Pest Management in Rice. 1990. Grayson, B.T., M.B. Green and L.G. Copping (Eds)","700"]
["Freshwater/non-metal/non- plant","700-4",55,0.60439560439560436,"The highest possible grade for this datum is acceptable.","Cyprinus carpio","Juvenile","96 hrs","LC50","Mortality","0.8 ug/L","Fish","Chordata","Actinopterygii","Aerated tap water","24-30oC","Acute ","NA","N.A.","Stephenson R.R. A pyrethroid insecticide for use in rice - effects of formulation on fish toxicity and its assessment. In Pest Management in Rice. 1990. Grayson, B.T., M.B. Green and L.G. Copping (Eds)","700"]
["Freshwater/non-metal/non- plant","700-5",55,0.60439560439560436,"The highest possible grade for this datum is acceptable.","Cyprinus carpio","Juvenile","96 hrs","LC50","Mortality","11 ug/L","Fish","Chordata","Actinopterygii","Aerated tap water","24-30oC","Acute ","NA","N.A.","Stephenson R.R. A pyrethroid insecticide for use in rice - effects of formulation on fish toxicity and its assessment. In Pest Management in Rice. 1990. Grayson, B.T., M.B. Green and L.G. Copping (Eds)","700"]
["Freshwater/non-metal/non- plant","700-6",55,0.60439560439560436,"The highest possible grade for this datum is acceptable.","Puntius gonionotus","Juvenile","96 hrs","LC50","Mortality","0.4 ug/L","Fish","Chordata","Actinopterygii","Aerated tap water","24-30oC","Acute ","NA","N.A.","Stephenson R.R. A pyrethroid insecticide for use in rice - effects of formulation on fish toxicity and its assessment. In Pest Management in Rice. 1990. Grayson, B.T., M.B. Green and L.G. Copping (Eds)","700"]
["Freshwater/non-metal/non- plant","700-7",55,0.60439560439560436,"The highest possible grade for this datum is acceptable.","Puntius gonionotus","Juvenile","96 hrs","LC50","Mortality","3.2 ug/L","Fish","Chordata","Actinopterygii","Aerated tap water","24-30oC","Acute ","NA","N.A.","Stephenson R.R. A pyrethroid insecticide for use in rice - effects of formulation on fish toxicity and its assessment. In Pest Management in Rice. 1990. Grayson, B.T., M.B. Green and L.G. Copping (Eds)","700"]
["Freshwater/non-metal/non- plant","752-1",60,0.65934065934065933,"The highest possible grade for this datum is acceptable.","Daphnia magna","Neonate","48 hrs","LC50","Mortality","0.8 ug/L","Macroinvertebrate","Arthropoda","Branchiopoda","Water","NA","Acute ","NA","N.A.","Yordanova, V., T. Stoyanova, I. Traykov and B. Boyanovsky. 2009. Toxicological effects of fastac insecticide (alpha-cypermethrin) to Daphnia magna and Gammarus pulex. Biotechnology and Biotechnical Equipment 23 (Sup1): 393-395.","752"]
["Freshwater/non-metal/non- plant","752-2",55,0.60439560439560436,"The highest possible grade for this datum is acceptable.","Gammarus pulex","N.A.","24 hrs","LC50","Mortality","0.3 ug/L","Macroinvertebrate","Arthropoda","Malacostraca","Water","NA","Acute ","NA","N.A.","Yordanova, V., T. Stoyanova, I. Traykov and B. Boyanovsky. 2009. Toxicological effects of fastac insecticide (alpha-cypermethrin) to Daphnia magna and Gammarus pulex. Biotechnology and Biotechnical Equipment 23 (Sup1): 393-395.","752"]
["Freshwater/non-metal/non- plant","753-1",57,0.62637362637362637,"The highest possible grade for this datum is acceptable.","Danio rerio","Embryo","72 hrs","LC50","Mortality","0.024 ug/L","Fish","Chordata","Actinopterygii","Dechlorinated water","NA","Acute ","NA","N.A.","Ansari, S. and B.A. Ansari. 2012. Alphamethrin toxicity: effect on the reproductive ability and the activity of phosphatases in the tissue of zebrafish, Danio rerio. International Journal of Life Science and Pharma Researc 2: 89-100","753"]
["Freshwater/non-metal/non- plant","753-2",66,0.72527472527472525,"The highest possible grade for this datum is acceptable.","Danio rerio","Fingerling","72 hrs","LC50","Mortality","0.02 ug/L","Fish","Chordata","Actinopterygii","Dechlorinated water","NA","Acute ","NA","N.A.","Ansari, S. and B.A. Ansari. 2012. Alphamethrin toxicity: effect on the reproductive ability and the activity of phosphatases in the tissue of zebrafish, Danio rerio. International Journal of Life Science and Pharma Researc 2: 89-100","753"]
["Freshwater/non-metal/non- plant","753-3",66,0.72527472527472525,"The highest possible grade for this datum is acceptable.","Danio rerio","Adult","96 hrs","LC50","Mortality","0.17 ug/L","Fish","Chordata","Actinopterygii","Dechlorinated water","NA","Acute ","NA","N.A.","Ansari, S. and B.A. Ansari. 2012. Alphamethrin toxicity: effect on the reproductive ability and the activity of phosphatases in the tissue of zebrafish, Danio rerio. International Journal of Life Science and Pharma Researc 2: 89-100","753"]
["Freshwater/non-metal/non- plant","753-4",56,0.61538461538461542,"The highest possible grade for this datum is acceptable.","Danio rerio","Adult","30 days","LOEC","Reproduction","0.02 ug/L","Fish","Chordata","Actinopterygii","Dechlorinated water","NA","Acute ","NA","N.A.","Ansari, S. and B.A. Ansari. 2012. Alphamethrin toxicity: effect on the reproductive ability and the activity of phosphatases in the tissue of zebrafish, Danio rerio. International Journal of Life Science and Pharma Researc 2: 89-100","753"]
["Freshwater/non-metal/non- plant","755-1",60,0.65934065934065933,"The highest possible grade for this datum is acceptable.","Lymnaea acuminata","Hatchlings","28 days","LOEC","Mortality","4 ug/L","Mollusc","Mollusca","Gastropoda","Dechlorinated water","22-24oC","Acute ","7.0-7.4","N.A.","Tripathi, P.K. and A. Singh. 2004. Toxic effects of cypermethrin and alphacypermethrin on reproduction and oxidative metabolism of the freshwater snail, Lymnaea acuminata. Ecotoxicology and Environmental Safety 58: 227-235","755"]
["Freshwater/non-metal/non- plant","3100-1",69,0.75824175824175821,"The highest possible grade for this datum is acceptable.","Culex tritaeniorhynchus","larvae","24 hrs","LC50","Mortality","3.1 ug/L","Insect","Arthropoda","Insecta","Dechlorinated water","22-24oC","Acute ","7.0-7.4","N.A.","Reza, F.M. and V.A. Vijayan. 2006. Differential tolerance of two morphological variants of culex tritaeniorhynchus (Dipteria: Culicidae), a Japanese encephalitis vector, to pyrethroid insecticides in Mysore, India. The Southeast Asian Journal of Tropical Medicine and Public Health 37(Supplement 3): 128-131","3100"]
["Freshwater/non-metal/non- plant","3100-2",69,0.75824175824175821,"The highest possible grade for this datum is acceptable.","Culex tritaeniorhynchus","larvae","24 hrs","LC50","Mortality","1.43 ug/L","Insect","Arthropoda","Insecta","Dechlorinated water","22-24oC","Acute ","7.0-7.4","N.A.","Reza, F.M. and V.A. Vijayan. 2006. Differential tolerance of two morphological variants of culex tritaeniorhynchus (Dipteria: Culicidae), a Japanese encephalitis vector, to pyrethroid insecticides in Mysore, India. The Southeast Asian Journal of Tropical Medicine and Public Health 37(Supplement 3): 128-131","3100"]
["Freshwater/non-metal/non- plant","3101-1",72,0.79120879120879117,"The highest possible grade for this datum is acceptable.","Rutilus rutilus caspicus","Juvenile","96 hrs","LC50","Mortality","0.627 ug/L","Fish","Chordata","Actinopterygii","Dechlorinated tap water","22-24oC","Acute ","7.0-7.4","N.A.","Shaluei, F., A. Hedayati, H. Kolangi, A. Jahanbakhshi and M. Baghfalaki. 2012. Evaluaiton of the acute toxicity of cypermethrin and its effects on behavioural responses of caspian roach (Rutilus rutilus caspicus) and silver carp (Hypophthalmicthys molitrix). Global Veterinaria 9: 215-219","3101"]
["Freshwater/non-metal/non- plant","3101-2",72,0.79120879120879117,"The highest possible grade for this datum is acceptable.","Hypophthalmicthys molitrix","Juvenile","96 hrs","LC50","Mortality","0.917 ug/L","Fish","Chordata","Actinopterygii","Dechlorinated tap water","18.45 - 21.45oC","Acute ","7.12 - 8.64","N.A.","Shaluei, F., A. Hedayati, H. Kolangi, A. Jahanbakhshi and M. Baghfalaki. 2012. Evaluaiton of the acute toxicity of cypermethrin and its effects on behavioural responses of caspian roach (Rutilus rutilus caspicus) and silver carp (Hypophthalmicthys molitrix). Global Veterinaria 9: 215-219","3101"]
["Freshwater/non-metal/non- plant","3102-1",69,0.75824175824175821,"The highest possible grade for this datum is acceptable.","Anopheles sinensis","larvae","96 hrs","LC50","Mortality","0.06 mg/L","Insect","Arthropoda","Insecta","Dechlorinated tap water","NA","Acute ","NA","N.A.","Chang, K-S., J-S. Jung, C. Park, D-K, Lee and E-H Shin. 2009. Insecticide susceptibility and resistance of larvae of the Anopheles sinensis group (Diptera: Culicidae) from Paju, Republic of Korea. Entomological Research 39: 196-200","3102"]
["Freshwater/non-metal/non- plant","3103-1",71,0.78021978021978022,"The highest possible grade for this datum is acceptable.","Huso huso","larvae","96 hrs","LC50","Mortality","0.952 ug/L","Fish","Chordata","Actinopterygii","Tap water","22-24oC","Acute ","7.8-7.98","N.A.","Jahanbakhshi, A., F. Shaluei and M. Baghfalaki. 2012. Acute toxicity of cypermethrin on the great sturgeon (Huso huso) juveniles. World Journa of Fish and Marine Sciences 4: 170-174","3103"]
["Freshwater/non-metal/non- plant","3104-1",54,0.59340659340659341,"The highest possible grade for this datum is acceptable.","Daphnia magna","Neonate","21 days","NOEC","Reproduction","0.0372 ug/L","Macroinvertebrate","Arthropoda","Branchiopoda","NA","NA","Chronic","NA","N.A.","USEPA (2019) OPP Pesticide Ecotoxicity Database - Alpha-cypermethrin. Accessed 16 April 19","3104"]
["Freshwater/non-metal/non- plant","3104-2",54,0.59340659340659341,"The highest possible grade for this datum is acceptable.","Daphnia magna","Neonate","21 days","LOEC","Reproduction","0.0744 ug/L","Macroinvertebrate","Arthropoda","Branchiopoda","NA","NA","Chronic","NA","N.A.","USEPA (2019) OPP Pesticide Ecotoxicity Database - Alpha-cypermethrin. Accessed 16 April 19","3104"]
["Freshwater/metal/plant","3105-1",58,0.59793814432989689,"The highest possible grade for this datum is acceptable.","Anabaena flos-aquae","N.A.","96 hrs","NOEC","Growth","27.2 ug/L","Algae","Cyanobacteria","Homogoneae","N.A.","N.A.","Chronic","N.A.","N.A.","USEPA (2019) OPP Pesticide Ecotoxicity Database - Alpha-cypermethrin. Accessed 16 April 19","3105"]
["Freshwater/metal/plant","3106-1",58,0.59793814432989689,"The highest possible grade for this datum is acceptable.","Lemna gibba","N.A.","168 hrs","NOEC","Growth","1.39 ug/L","Plant","Tracheophyta","Liliopsida","N.A.","N.A.","Chronic","N.A.","N.A.","USEPA (2019) OPP Pesticide Ecotoxicity Database - Alpha-cypermethrin. Accessed 16 April 19","3106"]
["Freshwater/metal/plant","3107-1",58,0.59793814432989689,"The highest possible grade for this datum is acceptable.","Navicula pelliculosa","N.A.","96 hrs","NOEC","Growth","72 ug/L","Diatom","Ochrophyta","Bacillariophyceae","N.A.","N.A.","Chronic","N.A.","N.A.","USEPA (2019) OPP Pesticide Ecotoxicity Database - Alpha-cypermethrin. Accessed 16 April 19","3107"]

{"sheet":"Sheet1","index":4,"n_rows":70,"n_cols":29,"rows_kept":70,"cut":false,"hidden":true,"merged":[]}
[]
[{"$f":"#REF!","v":{"$error":"#REF!"}},{"$f":"#REF!","v":{"$error":"#REF!"}},{"$f":"#REF!","v":{"$error":"#REF!"}},{"$f":"#REF!","v":{"$error":"#REF!"}},{"$f":"#REF!","v":{"$error":"#REF!"}},{"$f":"#REF!","v":{"$error":"#REF!"}},{"$f":"#REF!","v":{"$error":"#REF!"}},{"$f":"#REF!","v":{"$error":"#REF!"}},{"$f":"#REF!","v":{"$error":"#REF!"}},{"$f":"#REF!","v":{"$error":"#REF!"}},{"$f":"#REF!","v":{"$error":"#REF!"}},{"$f":"#REF!","v":{"$error":"#REF!"}},{"$f":"#REF!","v":{"$error":"#REF!"}},{"$f":"#REF!","v":{"$error":"#REF!"}},{"$f":"#REF!","v":{"$error":"#REF!"}},{"$f":"#REF!","v":{"$error":"#REF!"}},{"$f":"#REF!","v":{"$error":"#REF!"}},{"$f":"#REF!","v":{"$error":"#REF!"}},{"$f":"#REF!","v":{"$error":"#REF!"}},{"$f":"#REF!","v":{"$error":"#REF!"}},{"$f":"#REF!","v":{"$error":"#REF!"}},{"$f":"#REF!","v":{"$error":"#REF!"}},{"$f":"#REF!","v":{"$error":"#REF!"}},{"$f":"#REF!","v":{"$error":"#REF!"}},{"$f":"#REF!","v":{"$error":"#REF!"}},{"$f":"#REF!","v":{"$error":"#REF!"}}]
[{"$f":"#REF!","v":{"$error":"#REF!"}},{"$f":"#REF!","v":{"$error":"#REF!"}},{"$f":"#REF!","v":{"$error":"#REF!"}},{"$f":"#REF!","v":{"$error":"#REF!"}}]
[{"$f":"#REF!","v":{"$error":"#REF!"}},{"$f":"#REF!","v":{"$error":"#REF!"}},{"$f":"#REF!","v":{"$error":"#REF!"}},{"$f":"#REF!","v":{"$error":"#REF!"}},{"$f":"#REF!","v":{"$error":"#REF!"}},{"$f":"#REF!","v":{"$error":"#REF!"}},{"$f":"#REF!","v":{"$error":"#REF!"}},{"$f":"#REF!","v":{"$error":"#REF!"}},{"$f":"#REF!","v":{"$error":"#REF!"}},{"$f":"#REF!","v":{"$error":"#REF!"}},{"$f":"#REF!","v":{"$error":"#REF!"}},{"$f":"#REF!","v":{"$error":"#REF!"}},{"$f":"#REF!","v":{"$error":"#REF!"}},{"$f":"#REF!","v":{"$error":"#REF!"}},{"$f":"#REF!","v":{"$error":"#REF!"}},{"$f":"#REF!","v":{"$error":"#REF!"}},{"$f":"#REF!","v":{"$error":"#REF!"}},{"$f":"#REF!","v":{"$error":"#REF!"}},{"$f":"#REF!","v":{"$error":"#REF!"}},{"$f":"#REF!","v":{"$error":"#REF!"}},{"$f":"#REF!","v":{"$error":"#REF!"}},{"$f":"#REF!","v":{"$error":"#REF!"}},{"$f":"#REF!","v":{"$error":"#REF!"}},{"$f":"#REF!","v":{"$error":"#REF!"}},{"$f":"#REF!","v":{"$error":"#REF!"}},{"$f":"#REF!","v":{"$error":"#REF!"}}]
["Answers",{"$f":"IF(#REF!=0,\"\",#REF!)","v":{"$error":"#REF!"}},{"$f":"IF(#REF!=0,\"\",#REF!)","v":{"$error":"#REF!"}},{"$f":"IF(#REF!=0,\"\",#REF!)","v":{"$error":"#REF!"}},{"$f":"IF(#REF!=0,\"\",#REF!)","v":{"$error":"#REF!"}},{"$f":"IF(#REF!=0,\"\",#REF!)","v":{"$error":"#REF!"}},{"$f":"IF(#REF!=0,\"\",#REF!)","v":{"$error":"#REF!"}},{"$f":"IF(#REF!=0,\"\",#REF!)","v":{"$error":"#REF!"}},{"$f":"IF(#REF!=0,\"\",#REF!)","v":{"$error":"#REF!"}},{"$f":"IF(#REF!=0,\"\",#REF!)","v":{"$error":"#REF!"}},{"$f":"IF(#REF!=0,\"\",#REF!)","v":{"$error":"#REF!"}},{"$f":"IF(#REF!=0,\"\",#REF!)","v":{"$error":"#REF!"}},{"$f":"IF(#REF!=0,\"\",#REF!)","v":{"$error":"#REF!"}},{"$f":"IF(#REF!=0,\"\",#REF!)","v":{"$error":"#REF!"}},{"$f":"IF(#REF!=0,\"\",#REF!)","v":{"$error":"#REF!"}},{"$f":"IF(#REF!=0,\"\",#REF!)","v":{"$error":"#REF!"}},{"$f":"IF(#REF!=0,\"\",#REF!)","v":{"$error":"#REF!"}},{"$f":"IF(#REF!=0,\"\",#REF!)","v":{"$error":"#REF!"}},{"$f":"IF(#REF!=0,\"\",#REF!)","v":{"$error":"#REF!"}},{"$f":"IF(#REF!=0,\"\",#REF!)","v":{"$error":"#REF!"}},{"$f":"IF(#REF!=0,\"\",#REF!)","v":{"$error":"#REF!"}},{"$f":"IF(#REF!=0,\"\",#REF!)","v":{"$error":"#REF!"}},{"$f":"IF(#REF!=0,\"\",#REF!)","v":{"$error":"#REF!"}},{"$f":"IF(#REF!=0,\"\",#REF!)","v":{"$error":"#REF!"}}]
[{"$f":"#REF!","v":{"$error":"#REF!"}},{"$f":"#REF!","v":{"$error":"#REF!"}},{"$f":"#REF!","v":{"$error":"#REF!"}},{"$f":"#REF!","v":{"$error":"#REF!"}},{"$f":"#REF!","v":{"$error":"#REF!"}},{"$f":"#REF!","v":{"$error":"#REF!"}},{"$f":"#REF!","v":{"$error":"#REF!"}},{"$f":"#REF!","v":{"$error":"#REF!"}}]
[{"$f":"#REF!","v":{"$error":"#REF!"}},{"$f":"#REF!","v":{"$error":"#REF!"}},{"$f":"#REF!","v":{"$error":"#REF!"}},{"$f":"#REF!","v":{"$error":"#REF!"}},{"$f":"#REF!","v":{"$error":"#REF!"}},{"$f":"IF(#REF!=0,\"\",#REF!)","v":{"$error":"#REF!"}},{"$f":"IF(#REF!=0,\"\",#REF!)","v":{"$error":"#REF!"}},{"$f":"IF(#REF!=0,\"\",#REF!)","v":{"$error":"#REF!"}}]
[]
[]
[]
[{"$f":"#REF!","v":{"$error":"#REF!"}},{"$f":"#REF!","v":{"$error":"#REF!"}},{"$f":"#REF!","v":{"$error":"#REF!"}},{"$f":"#REF!","v":{"$error":"#REF!"}},{"$f":"#REF!","v":{"$error":"#REF!"}},{"$f":"#REF!","v":{"$error":"#REF!"}},{"$f":"#REF!","v":{"$error":"#REF!"}},{"$f":"#REF!","v":{"$error":"#REF!"}},{"$f":"#REF!","v":{"$error":"#REF!"}},{"$f":"#REF!","v":{"$error":"#REF!"}},{"$f":"#REF!","v":{"$error":"#REF!"}},{"$f":"#REF!","v":{"$error":"#REF!"}},{"$f":"#REF!","v":{"$error":"#REF!"}},{"$f":"#REF!","v":{"$error":"#REF!"}},{"$f":"#REF!","v":{"$error":"#REF!"}},{"$f":"#REF!","v":{"$error":"#REF!"}},{"$f":"#REF!","v":{"$error":"#REF!"}},{"$f":"#REF!","v":{"$error":"#REF!"}},{"$f":"#REF!","v":{"$error":"#REF!"}},{"$f":"#REF!","v":{"$error":"#REF!"}},{"$f":"#REF!","v":{"$error":"#REF!"}},{"$f":"#REF!","v":{"$error":"#REF!"}},{"$f":"#REF!","v":{"$error":"#REF!"}},{"$f":"#REF!","v":{"$error":"#REF!"}},{"$f":"#REF!","v":{"$error":"#REF!"}},{"$f":"#REF!","v":{"$error":"#REF!"}},{"$f":"#REF!","v":{"$error":"#REF!"}}]
[{"$f":"#REF!","v":{"$error":"#REF!"}},{"$f":"#REF!","v":{"$error":"#REF!"}},{"$f":"#REF!","v":{"$error":"#REF!"}},{"$f":"#REF!","v":{"$error":"#REF!"}}]
[{"$f":"#REF!","v":{"$error":"#REF!"}},{"$f":"#REF!","v":{"$error":"#REF!"}},{"$f":"#REF!","v":{"$error":"#REF!"}},{"$f":"#REF!","v":{"$error":"#REF!"}},{"$f":"#REF!","v":{"$error":"#REF!"}},{"$f":"#REF!","v":{"$error":"#REF!"}},{"$f":"#REF!","v":{"$error":"#REF!"}},{"$f":"#REF!","v":{"$error":"#REF!"}},{"$f":"#REF!","v":{"$error":"#REF!"}},{"$f":"#REF!","v":{"$error":"#REF!"}},{"$f":"#REF!","v":{"$error":"#REF!"}},{"$f":"#REF!","v":{"$error":"#REF!"}},{"$f":"#REF!","v":{"$error":"#REF!"}},{"$f":"#REF!","v":{"$error":"#REF!"}},{"$f":"#REF!","v":{"$error":"#REF!"}},{"$f":"#REF!","v":{"$error":"#REF!"}},{"$f":"#REF!","v":{"$error":"#REF!"}},{"$f":"#REF!","v":{"$error":"#REF!"}},{"$f":"#REF!","v":{"$error":"#REF!"}},{"$f":"#REF!","v":{"$error":"#REF!"}},{"$f":"#REF!","v":{"$error":"#REF!"}},{"$f":"#REF!","v":{"$error":"#REF!"}},{"$f":"#REF!","v":{"$error":"#REF!"}},{"$f":"#REF!","v":{"$error":"#REF!"}},{"$f":"#REF!","v":{"$error":"#REF!"}},{"$f":"#REF!","v":{"$error":"#REF!"}},{"$f":"#REF!","v":{"$error":"#REF!"}}]
[{"$f":"#REF!","v":{"$error":"#REF!"}},{"$f":"IF(#REF!=0,\"\",#REF!)","v":{"$error":"#REF!"}},{"$f":"IF(#REF!=0,\"\",#REF!)","v":{"$error":"#REF!"}},{"$f":"IF(#REF!=0,\"\",#REF!)","v":{"$error":"#REF!"}},{"$f":"IF(#REF!=0,\"\",#REF!)","v":{"$error":"#REF!"}},null,{"$f":"IF(#REF!=0,\"\",#REF!)","v":{"$error":"#REF!"}},{"$f":"IF(#REF!=0,\"\",#REF!)","v":{"$error":"#REF!"}},{"$f":"IF(#REF!=0,\"\",#REF!)","v":{"$error":"#REF!"}},{"$f":"IF(#REF!=0,\"\",#REF!)","v":{"$error":"#REF!"}},{"$f":"IF(#REF!=0,\"\",#REF!)","v":{"$error":"#REF!"}},{"$f":"IF(#REF!=0,\"\",#REF!)","v":{"$error":"#REF!"}},{"$f":"IF(#REF!=0,\"\",#REF!)","v":{"$error":"#REF!"}},{"$f":"IF(#REF!=0,\"\",#REF!)","v":{"$error":"#REF!"}},{"$f":"IF(#REF!=0,\"\",#REF!)","v":{"$error":"#REF!"}},{"$f":"IF(#REF!=0,\"\",#REF!)","v":{"$error":"#REF!"}},{"$f":"IF(#REF!=0,\"\",#REF!)","v":{"$error":"#REF!"}},{"$f":"IF(#REF!=0,\"\",#REF!)","v":{"$error":"#REF!"}},{"$f":"IF(#REF!=0,\"\",#REF!)","v":{"$error":"#REF!"}},{"$f":"IF(#REF!=0,\"\",#REF!)","v":{"$error":"#REF!"}},{"$f":"IF(#REF!=0,\"\",#REF!)","v":{"$error":"#REF!"}},{"$f":"IF(#REF!=0,\"\",#REF!)","v":{"$error":"#REF!"}},{"$f":"IF(#REF!=0,\"\",#REF!)","v":{"$error":"#REF!"}},{"$f":"IF(#REF!=0,\"\",#REF!)","v":{"$error":"#REF!"}},{"$f":"IF(#REF!=0,\"\",#REF!)","v":{"$error":"#REF!"}}]
[{"$f":"#REF!","v":{"$error":"#REF!"}},{"$f":"#REF!","v":{"$error":"#REF!"}},{"$f":"#REF!","v":{"$error":"#REF!"}},{"$f":"#REF!","v":{"$error":"#REF!"}},{"$f":"#REF!","v":{"$error":"#REF!"}},{"$f":"#REF!","v":{"$error":"#REF!"}},{"$f":"#REF!","v":{"$error":"#REF!"}},{"$f":"#REF!","v":{"$error":"#REF!"}}]
[{"$f":"#REF!","v":{"$error":"#REF!"}},{"$f":"#REF!","v":{"$error":"#REF!"}},{"$f":"#REF!","v":{"$error":"#REF!"}},{"$f":"#REF!","v":{"$error":"#REF!"}},{"$f":"#REF!","v":{"$error":"#REF!"}},{"$f":"IF(#REF!=0,\"\",#REF!)","v":{"$error":"#REF!"}},{"$f":"IF(#REF!=0,\"\",#REF!)","v":{"$error":"#REF!"}},{"$f":"IF(#REF!=0,\"\",#REF!)","v":{"$error":"#REF!"}}]
[]
[]
[]
[{"$f":"#REF!","v":{"$error":"#REF!"}},{"$f":"#REF!","v":{"$error":"#REF!"}},{"$f":"#REF!","v":{"$error":"#REF!"}},{"$f":"#REF!","v":{"$error":"#REF!"}},{"$f":"#REF!","v":{"$error":"#REF!"}},{"$f":"#REF!","v":{"$error":"#REF!"}},{"$f":"#REF!","v":{"$error":"#REF!"}},{"$f":"#REF!","v":{"$error":"#REF!"}},{"$f":"#REF!","v":{"$error":"#REF!"}},{"$f":"#REF!","v":{"$error":"#REF!"}},{"$f":"#REF!","v":{"$error":"#REF!"}},{"$f":"#REF!","v":{"$error":"#REF!"}},{"$f":"#REF!","v":{"$error":"#REF!"}},{"$f":"#REF!","v":{"$error":"#REF!"}},{"$f":"#REF!","v":{"$error":"#REF!"}},{"$f":"#REF!","v":{"$error":"#REF!"}},{"$f":"#REF!","v":{"$error":"#REF!"}},{"$f":"#REF!","v":{"$error":"#REF!"}},{"$f":"#REF!","v":{"$error":"#REF!"}},{"$f":"#REF!","v":{"$error":"#REF!"}},{"$f":"#REF!","v":{"$error":"#REF!"}},{"$f":"#REF!","v":{"$error":"#REF!"}},{"$f":"#REF!","v":{"$error":"#REF!"}},{"$f":"#REF!","v":{"$error":"#REF!"}},{"$f":"#REF!","v":{"$error":"#REF!"}},{"$f":"#REF!","v":{"$error":"#REF!"}}]
[{"$f":"#REF!","v":{"$error":"#REF!"}},{"$f":"#REF!","v":{"$error":"#REF!"}},{"$f":"#REF!","v":{"$error":"#REF!"}},{"$f":"#REF!","v":{"$error":"#REF!"}}]
[{"$f":"#REF!","v":{"$error":"#REF!"}},{"$f":"#REF!","v":{"$error":"#REF!"}},{"$f":"#REF!","v":{"$error":"#REF!"}},{"$f":"#REF!","v":{"$error":"#REF!"}},{"$f":"#REF!","v":{"$error":"#REF!"}},{"$f":"#REF!","v":{"$error":"#REF!"}},{"$f":"#REF!","v":{"$error":"#REF!"}},{"$f":"#REF!","v":{"$error":"#REF!"}},{"$f":"#REF!","v":{"$error":"#REF!"}},{"$f":"#REF!","v":{"$error":"#REF!"}},{"$f":"#REF!","v":{"$error":"#REF!"}},{"$f":"#REF!","v":{"$error":"#REF!"}},{"$f":"#REF!","v":{"$error":"#REF!"}},{"$f":"#REF!","v":{"$error":"#REF!"}},{"$f":"#REF!","v":{"$error":"#REF!"}},{"$f":"#REF!","v":{"$error":"#REF!"}},{"$f":"#REF!","v":{"$error":"#REF!"}},{"$f":"#REF!","v":{"$error":"#REF!"}},{"$f":"#REF!","v":{"$error":"#REF!"}},{"$f":"#REF!","v":{"$error":"#REF!"}},{"$f":"#REF!","v":{"$error":"#REF!"}},{"$f":"#REF!","v":{"$error":"#REF!"}},{"$f":"#REF!","v":{"$error":"#REF!"}},{"$f":"#REF!","v":{"$error":"#REF!"}},{"$f":"#REF!","v":{"$error":"#REF!"}},{"$f":"#REF!","v":{"$error":"#REF!"}}]
[{"$f":"#REF!","v":{"$error":"#REF!"}},{"$f":"IF(#REF!=0,\"\",#REF!)","v":{"$error":"#REF!"}},{"$f":"IF(#REF!=0,\"\",#REF!)","v":{"$error":"#REF!"}},{"$f":"IF(#REF!=0,\"\",#REF!)","v":{"$error":"#REF!"}},{"$f":"IF(#REF!=0,\"\",#REF!)","v":{"$error":"#REF!"}},{"$f":"IF(#REF!=0,\"\",#REF!)","v":{"$error":"#REF!"}},{"$f":"IF(#REF!=0,\"\",#REF!)","v":{"$error":"#REF!"}},{"$f":"IF(#REF!=0,\"\",#REF!)","v":{"$error":"#REF!"}},{"$f":"IF(#REF!=0,\"\",#REF!)","v":{"$error":"#REF!"}},{"$f":"IF(#REF!=0,\"\",#REF!)","v":{"$error":"#REF!"}},{"$f":"IF(#REF!=0,\"\",#REF!)","v":{"$error":"#REF!"}},{"$f":"IF(#REF!=0,\"\",#REF!)","v":{"$error":"#REF!"}},{"$f":"IF(#REF!=0,\"\",#REF!)","v":{"$error":"#REF!"}},{"$f":"IF(#REF!=0,\"\",#REF!)","v":{"$error":"#REF!"}},{"$f":"IF(#REF!=0,\"\",#REF!)","v":{"$error":"#REF!"}},{"$f":"IF(#REF!=0,\"\",#REF!)","v":{"$error":"#REF!"}},{"$f":"IF(#REF!=0,\"\",#REF!)","v":{"$error":"#REF!"}},{"$f":"IF(#REF!=0,\"\",#REF!)","v":{"$error":"#REF!"}},{"$f":"IF(#REF!=0,\"\",#REF!)","v":{"$error":"#REF!"}},{"$f":"IF(#REF!=0,\"\",#REF!)","v":{"$error":"#REF!"}},{"$f":"IF(#REF!=0,\"\",#REF!)","v":{"$error":"#REF!"}},{"$f":"IF(#REF!=0,\"\",#REF!)","v":{"$error":"#REF!"}},{"$f":"IF(#REF!=0,\"\",#REF!)","v":{"$error":"#REF!"}},{"$f":"IF(#REF!=0,\"\",#REF!)","v":{"$error":"#REF!"}}]
[{"$f":"#REF!","v":{"$error":"#REF!"}},{"$f":"#REF!","v":{"$error":"#REF!"}},{"$f":"#REF!","v":{"$error":"#REF!"}},{"$f":"#REF!","v":{"$error":"#REF!"}},{"$f":"#REF!","v":{"$error":"#REF!"}},{"$f":"#REF!","v":{"$error":"#REF!"}},{"$f":"#REF!","v":{"$error":"#REF!"}},{"$f":"#REF!","v":{"$error":"#REF!"}}]
[{"$f":"#REF!","v":{"$error":"#REF!"}},{"$f":"#REF!","v":{"$error":"#REF!"}},{"$f":"#REF!","v":{"$error":"#REF!"}},{"$f":"#REF!","v":{"$error":"#REF!"}},{"$f":"#REF!","v":{"$error":"#REF!"}},{"$f":"IF(#REF!=0,\"\",#REF!)","v":{"$error":"#REF!"}},{"$f":"IF(#REF!=0,\"\",#REF!)","v":{"$error":"#REF!"}},{"$f":"IF(#REF!=0,\"\",#REF!)","v":{"$error":"#REF!"}}]
[]
[]
[]
[{"$f":"#REF!","v":{"$error":"#REF!"}},{"$f":"#REF!","v":{"$error":"#REF!"}},{"$f":"#REF!","v":{"$error":"#REF!"}},{"$f":"#REF!","v":{"$error":"#REF!"}},{"$f":"#REF!","v":{"$error":"#REF!"}},{"$f":"#REF!","v":{"$error":"#REF!"}},{"$f":"#REF!","v":{"$error":"#REF!"}},{"$f":"#REF!","v":{"$error":"#REF!"}},{"$f":"#REF!","v":{"$error":"#REF!"}},{"$f":"#REF!","v":{"$error":"#REF!"}},{"$f":"#REF!","v":{"$error":"#REF!"}},{"$f":"#REF!","v":{"$error":"#REF!"}},{"$f":"#REF!","v":{"$error":"#REF!"}},{"$f":"#REF!","v":{"$error":"#REF!"}},{"$f":"#REF!","v":{"$error":"#REF!"}},{"$f":"#REF!","v":{"$error":"#REF!"}},{"$f":"#REF!","v":{"$error":"#REF!"}},{"$f":"#REF!","v":{"$error":"#REF!"}},{"$f":"#REF!","v":{"$error":"#REF!"}},{"$f":"#REF!","v":{"$error":"#REF!"}},{"$f":"#REF!","v":{"$error":"#REF!"}},{"$f":"#REF!","v":{"$error":"#REF!"}},{"$f":"#REF!","v":{"$error":"#REF!"}},{"$f":"#REF!","v":{"$error":"#REF!"}},{"$f":"#REF!","v":{"$error":"#REF!"}},{"$f":"#REF!","v":{"$error":"#REF!"}},{"$f":"#REF!","v":{"$error":"#REF!"}},{"$f":"#REF!","v":{"$error":"#REF!"}},{"$f":"#REF!","v":{"$error":"#REF!"}}]
[{"$f":"#REF!","v":{"$error":"#REF!"}},{"$f":"#REF!","v":{"$error":"#REF!"}},{"$f":"#REF!","v":{"$error":"#REF!"}},{"$f":"#REF!","v":{"$error":"#REF!"}}]
[{"$f":"#REF!","v":{"$error":"#REF!"}},{"$f":"#REF!","v":{"$error":"#REF!"}},{"$f":"#REF!","v":{"$error":"#REF!"}},{"$f":"#REF!","v":{"$error":"#REF!"}},{"$f":"#REF!","v":{"$error":"#REF!"}},{"$f":"#REF!","v":{"$error":"#REF!"}},{"$f":"#REF!","v":{"$error":"#REF!"}},{"$f":"#REF!","v":{"$error":"#REF!"}},{"$f":"#REF!","v":{"$error":"#REF!"}},{"$f":"#REF!","v":{"$error":"#REF!"}},{"$f":"#REF!","v":{"$error":"#REF!"}},{"$f":"#REF!","v":{"$error":"#REF!"}},{"$f":"#REF!","v":{"$error":"#REF!"}},{"$f":"#REF!","v":{"$error":"#REF!"}},{"$f":"#REF!","v":{"$error":"#REF!"}},{"$f":"#REF!","v":{"$error":"#REF!"}},{"$f":"#REF!","v":{"$error":"#REF!"}},{"$f":"#REF!","v":{"$error":"#REF!"}},{"$f":"#REF!","v":{"$error":"#REF!"}},{"$f":"#REF!","v":{"$error":"#REF!"}},{"$f":"#REF!","v":{"$error":"#REF!"}},{"$f":"#REF!","v":{"$error":"#REF!"}},{"$f":"#REF!","v":{"$error":"#REF!"}},{"$f":"#REF!","v":{"$error":"#REF!"}},{"$f":"#REF!","v":{"$error":"#REF!"}},{"$f":"#REF!","v":{"$error":"#REF!"}},{"$f":"#REF!","v":{"$error":"#REF!"}},{"$f":"#REF!","v":{"$error":"#REF!"}},{"$f":"#REF!","v":{"$error":"#REF!"}}]
[{"$f":"#REF!","v":{"$error":"#REF!"}},{"$f":"IF(#REF!=\"\",\"\",#REF!)","v":{"$error":"#REF!"}},{"$f":"IF(#REF!=\"\",\"\",#REF!)","v":{"$error":"#REF!"}},{"$f":"IF(#REF!=\"\",\"\",#REF!)","v":{"$error":"#REF!"}},{"$f":"IF(#REF!=\"\",\"\",#REF!)","v":{"$error":"#REF!"}},{"$f":"IF(#REF!=\"\",\"\",#REF!)","v":{"$error":"#REF!"}},{"$f":"IF(#REF!=\"\",\"\",#REF!)","v":{"$error":"#REF!"}},{"$f":"IF(#REF!=\"\",\"\",#REF!)","v":{"$error":"#REF!"}},{"$f":"IF(#REF!=\"\",\"\",#REF!)","v":{"$error":"#REF!"}},{"$f":"IF(#REF!=\"\",\"\",#REF!)","v":{"$error":"#REF!"}},{"$f":"IF(#REF!=\"\",\"\",#REF!)","v":{"$error":"#REF!"}},{"$f":"IF(#REF!=\"\",\"\",#REF!)","v":{"$error":"#REF!"}},{"$f":"IF(#REF!=\"\",\"\",#REF!)","v":{"$error":"#REF!"}},{"$f":"IF(#REF!=\"\",\"\",#REF!)","v":{"$error":"#REF!"}},{"$f":"IF(#REF!=\"\",\"\",#REF!)","v":{"$error":"#REF!"}},{"$f":"IF(#REF!=\"\",\"\",#REF!)","v":{"$error":"#REF!"}},{"$f":"IF(#REF!=\"\",\"\",#REF!)","v":{"$error":"#REF!"}},{"$f":"IF(#REF!=\"\",\"\",#REF!)","v":{"$error":"#REF!"}},{"$f":"IF(#REF!=\"\",\"\",#REF!)","v":{"$error":"#REF!"}},{"$f":"IF(#REF!=\"\",\"\",#REF!)","v":{"$error":"#REF!"}},{"$f":"IF(#REF!=\"\",\"\",#REF!)","v":{"$error":"#REF!"}},{"$f":"IF(#REF!=\"\",\"\",#REF!)","v":{"$error":"#REF!"}},{"$f":"IF(#REF!=\"\",\"\",#REF!)","v":{"$error":"#REF!"}},{"$f":"IF(#REF!=\"\",\"\",#REF!)","v":{"$error":"#REF!"}},{"$f":"IF(#REF!=\"\",\"\",#REF!)","v":{"$error":"#REF!"}},{"$f":"IF(#REF!=\"\",\"\",#REF!)","v":{"$error":"#REF!"}},{"$f":"IF(#REF!=\"\",\"\",#REF!)","v":{"$error":"#REF!"}}]
[{"$f":"#REF!","v":{"$error":"#REF!"}},{"$f":"#REF!","v":{"$error":"#REF!"}},{"$f":"#REF!","v":{"$error":"#REF!"}},{"$f":"#REF!","v":{"$error":"#REF!"}},{"$f":"#REF!","v":{"$error":"#REF!"}},{"$f":"#REF!","v":{"$error":"#REF!"}},{"$f":"#REF!","v":{"$error":"#REF!"}},{"$f":"#REF!","v":{"$error":"#REF!"}}]
[{"$f":"#REF!","v":{"$error":"#REF!"}},{"$f":"#REF!","v":{"$error":"#REF!"}},{"$f":"#REF!","v":{"$error":"#REF!"}},{"$f":"#REF!","v":{"$error":"#REF!"}},{"$f":"#REF!","v":{"$error":"#REF!"}},{"$f":"IF(#REF!=\"\",\"\",#REF!)","v":{"$error":"#REF!"}},{"$f":"IF(#REF!=\"\",\"\",#REF!)","v":{"$error":"#REF!"}},{"$f":"IF(#REF!=\"\",\"\",#REF!)","v":{"$error":"#REF!"}}]
[{"$f":"#REF!","v":{"$error":"#REF!"}},{"$f":"#REF!","v":{"$error":"#REF!"}},{"$f":"#REF!","v":{"$error":"#REF!"}},{"$f":"#REF!","v":{"$error":"#REF!"}},{"$f":"#REF!","v":{"$error":"#REF!"}},{"$f":"#REF!","v":{"$error":"#REF!"}},{"$f":"#REF!","v":{"$error":"#REF!"}},{"$f":"#REF!","v":{"$error":"#REF!"}},{"$f":"#REF!","v":{"$error":"#REF!"}},{"$f":"#REF!","v":{"$error":"#REF!"}},{"$f":"#REF!","v":{"$error":"#REF!"}},{"$f":"#REF!","v":{"$error":"#REF!"}},{"$f":"#REF!","v":{"$error":"#REF!"}},{"$f":"#REF!","v":{"$error":"#REF!"}},{"$f":"#REF!","v":{"$error":"#REF!"}},{"$f":"#REF!","v":{"$error":"#REF!"}},{"$f":"#REF!","v":{"$error":"#REF!"}},{"$f":"#REF!","v":{"$error":"#REF!"}},{"$f":"#REF!","v":{"$error":"#REF!"}},{"$f":"#REF!","v":{"$error":"#REF!"}},{"$f":"#REF!","v":{"$error":"#REF!"}}]
[{"$f":"#REF!","v":{"$error":"#REF!"}},{"$f":"#REF!","v":{"$error":"#REF!"}},{"$f":"#REF!","v":{"$error":"#REF!"}},{"$f":"#REF!","v":{"$error":"#REF!"}}]
[{"$f":"#REF!","v":{"$error":"#REF!"}},{"$f":"#REF!","v":{"$error":"#REF!"}},{"$f":"#REF!","v":{"$error":"#REF!"}},{"$f":"#REF!","v":{"$error":"#REF!"}},{"$f":"#REF!","v":{"$error":"#REF!"}},{"$f":"#REF!","v":{"$error":"#REF!"}},{"$f":"#REF!","v":{"$error":"#REF!"}},{"$f":"#REF!","v":{"$error":"#REF!"}},{"$f":"#REF!","v":{"$error":"#REF!"}},{"$f":"#REF!","v":{"$error":"#REF!"}},{"$f":"#REF!","v":{"$error":"#REF!"}},{"$f":"#REF!","v":{"$error":"#REF!"}},{"$f":"#REF!","v":{"$error":"#REF!"}},{"$f":"#REF!","v":{"$error":"#REF!"}},{"$f":"#REF!","v":{"$error":"#REF!"}},{"$f":"#REF!","v":{"$error":"#REF!"}},{"$f":"#REF!","v":{"$error":"#REF!"}},{"$f":"#REF!","v":{"$error":"#REF!"}},{"$f":"#REF!","v":{"$error":"#REF!"}},{"$f":"#REF!","v":{"$error":"#REF!"}},{"$f":"#REF!","v":{"$error":"#REF!"}},{"$f":"#REF!","v":{"$error":"#REF!"}}]
[{"$f":"#REF!","v":{"$error":"#REF!"}},{"$f":"IF(#REF!=\"\",\"\",#REF!)","v":{"$error":"#REF!"}},{"$f":"IF(#REF!=\"\",\"\",#REF!)","v":{"$error":"#REF!"}},{"$f":"IF(#REF!=\"\",\"\",#REF!)","v":{"$error":"#REF!"}},{"$f":"IF(#REF!=\"\",\"\",#REF!)","v":{"$error":"#REF!"}},{"$f":"IF(#REF!=\"\",\"\",#REF!)","v":{"$error":"#REF!"}},{"$f":"IF(#REF!=\"\",\"\",#REF!)","v":{"$error":"#REF!"}},{"$f":"IF(#REF!=\"\",\"\",#REF!)","v":{"$error":"#REF!"}},{"$f":"IF(#REF!=\"\",\"\",#REF!)","v":{"$error":"#REF!"}},{"$f":"IF(#REF!=\"\",\"\",#REF!)","v":{"$error":"#REF!"}},{"$f":"IF(#REF!=\"\",\"\",#REF!)","v":{"$error":"#REF!"}},{"$f":"IF(#REF!=\"\",\"\",#REF!)","v":{"$error":"#REF!"}},{"$f":"IF(#REF!=\"\",\"\",#REF!)","v":{"$error":"#REF!"}},{"$f":"IF(#REF!=\"\",\"\",#REF!)","v":{"$error":"#REF!"}},{"$f":"IF(#REF!=\"\",\"\",#REF!)","v":{"$error":"#REF!"}},{"$f":"IF(#REF!=\"\",\"\",#REF!)","v":{"$error":"#REF!"}},{"$f":"IF(#REF!=\"\",\"\",#REF!)","v":{"$error":"#REF!"}},{"$f":"IF(#REF!=\"\",\"\",#REF!)","v":{"$error":"#REF!"}},{"$f":"IF(#REF!=\"\",\"\",#REF!)","v":{"$error":"#REF!"}}]
[{"$f":"#REF!","v":{"$error":"#REF!"}},{"$f":"#REF!","v":{"$error":"#REF!"}},{"$f":"#REF!","v":{"$error":"#REF!"}},{"$f":"#REF!","v":{"$error":"#REF!"}},{"$f":"#REF!","v":{"$error":"#REF!"}},{"$f":"#REF!","v":{"$error":"#REF!"}},{"$f":"#REF!","v":{"$error":"#REF!"}},{"$f":"#REF!","v":{"$error":"#REF!"}},{"$f":"#REF!","v":{"$error":"#REF!"}},{"$f":"#REF!","v":{"$error":"#REF!"}},{"$f":"#REF!","v":{"$error":"#REF!"}},{"$f":"#REF!","v":{"$error":"#REF!"}},{"$f":"#REF!","v":{"$error":"#REF!"}},{"$f":"#REF!","v":{"$error":"#REF!"}},{"$f":"#REF!","v":{"$error":"#REF!"}},{"$f":"#REF!","v":{"$error":"#REF!"}}]
[{"$f":"#REF!","v":{"$error":"#REF!"}},{"$f":"#REF!","v":{"$error":"#REF!"}},{"$f":"#REF!","v":{"$error":"#REF!"}},{"$f":"#REF!","v":{"$error":"#REF!"}},{"$f":"#REF!","v":{"$error":"#REF!"}},{"$f":"IF(#REF!=\"\",\"\",#REF!)","v":{"$error":"#REF!"}},{"$f":"#REF!","v":{"$error":"#REF!"}},{"$f":"#REF!","v":{"$error":"#REF!"}},{"$f":"#REF!","v":{"$error":"#REF!"}},{"$f":"#REF!","v":{"$error":"#REF!"}},{"$f":"#REF!","v":{"$error":"#REF!"}},{"$f":"#REF!","v":{"$error":"#REF!"}},{"$f":"#REF!","v":{"$error":"#REF!"}},{"$f":"#REF!","v":{"$error":"#REF!"}},{"$f":"IF(#REF!=\"\",\"\",#REF!)","v":{"$error":"#REF!"}},{"$f":"IF(#REF!=\"\",\"\",#REF!)","v":{"$error":"#REF!"}}]
[{"$f":"#REF!","v":{"$error":"#REF!"}},{"$f":"#REF!","v":{"$error":"#REF!"}},{"$f":"#REF!","v":{"$error":"#REF!"}},{"$f":"#REF!","v":{"$error":"#REF!"}},{"$f":"#REF!","v":{"$error":"#REF!"}},{"$f":"#REF!","v":{"$error":"#REF!"}},{"$f":"#REF!","v":{"$error":"#REF!"}},{"$f":"#REF!","v":{"$error":"#REF!"}},{"$f":"#REF!","v":{"$error":"#REF!"}},{"$f":"#REF!","v":{"$error":"#REF!"}},{"$f":"#REF!","v":{"$error":"#REF!"}},{"$f":"#REF!","v":{"$error":"#REF!"}},{"$f":"#REF!","v":{"$error":"#REF!"}},{"$f":"#REF!","v":{"$error":"#REF!"}},{"$f":"#REF!","v":{"$error":"#REF!"}},{"$f":"#REF!","v":{"$error":"#REF!"}},{"$f":"#REF!","v":{"$error":"#REF!"}},{"$f":"#REF!","v":{"$error":"#REF!"}},{"$f":"#REF!","v":{"$error":"#REF!"}},{"$f":"#REF!","v":{"$error":"#REF!"}},{"$f":"#REF!","v":{"$error":"#REF!"}},{"$f":"#REF!","v":{"$error":"#REF!"}},{"$f":"#REF!","v":{"$error":"#REF!"}},{"$f":"#REF!","v":{"$error":"#REF!"}}]
[{"$f":"#REF!","v":{"$error":"#REF!"}},{"$f":"#REF!","v":{"$error":"#REF!"}},{"$f":"#REF!","v":{"$error":"#REF!"}},{"$f":"#REF!","v":{"$error":"#REF!"}}]
[{"$f":"#REF!","v":{"$error":"#REF!"}},{"$f":"#REF!","v":{"$error":"#REF!"}},{"$f":"#REF!","v":{"$error":"#REF!"}},{"$f":"#REF!","v":{"$error":"#REF!"}},{"$f":"#REF!","v":{"$error":"#REF!"}},{"$f":"#REF!","v":{"$error":"#REF!"}},{"$f":"#REF!","v":{"$error":"#REF!"}},{"$f":"#REF!","v":{"$error":"#REF!"}},{"$f":"#REF!","v":{"$error":"#REF!"}},{"$f":"#REF!","v":{"$error":"#REF!"}},{"$f":"#REF!","v":{"$error":"#REF!"}},{"$f":"#REF!","v":{"$error":"#REF!"}},{"$f":"#REF!","v":{"$error":"#REF!"}},{"$f":"#REF!","v":{"$error":"#REF!"}},{"$f":"#REF!","v":{"$error":"#REF!"}},{"$f":"#REF!","v":{"$error":"#REF!"}},{"$f":"#REF!","v":{"$error":"#REF!"}},{"$f":"#REF!","v":{"$error":"#REF!"}},{"$f":"#REF!","v":{"$error":"#REF!"}},{"$f":"#REF!","v":{"$error":"#REF!"}},{"$f":"#REF!","v":{"$error":"#REF!"}},{"$f":"#REF!","v":{"$error":"#REF!"}},{"$f":"#REF!","v":{"$error":"#REF!"}},{"$f":"#REF!","v":{"$error":"#REF!"}},{"$f":"#REF!","v":{"$error":"#REF!"}}]
[{"$f":"#REF!","v":{"$error":"#REF!"}},{"$f":"IF(#REF!=\"\",\"\",#REF!)","v":{"$error":"#REF!"}},{"$f":"IF(#REF!=\"\",\"\",#REF!)","v":{"$error":"#REF!"}},{"$f":"IF(#REF!=\"\",\"\",#REF!)","v":{"$error":"#REF!"}},{"$f":"IF(#REF!=\"\",\"\",#REF!)","v":{"$error":"#REF!"}},{"$f":"IF(#REF!=\"\",\"\",#REF!)","v":{"$error":"#REF!"}},{"$f":"IF(#REF!=\"\",\"\",#REF!)","v":{"$error":"#REF!"}},{"$f":"IF(#REF!=\"\",\"\",#REF!)","v":{"$error":"#REF!"}},{"$f":"IF(#REF!=\"\",\"\",#REF!)","v":{"$error":"#REF!"}},{"$f":"IF(#REF!=\"\",\"\",#REF!)","v":{"$error":"#REF!"}},{"$f":"IF(#REF!=\"\",\"\",#REF!)","v":{"$error":"#REF!"}},{"$f":"IF(#REF!=\"\",\"\",#REF!)","v":{"$error":"#REF!"}},{"$f":"IF(#REF!=\"\",\"\",#REF!)","v":{"$error":"#REF!"}},{"$f":"IF(#REF!=\"\",\"\",#REF!)","v":{"$error":"#REF!"}},{"$f":"IF(#REF!=\"\",\"\",#REF!)","v":{"$error":"#REF!"}},{"$f":"IF(#REF!=\"\",\"\",#REF!)","v":{"$error":"#REF!"}},{"$f":"IF(#REF!=\"\",\"\",#REF!)","v":{"$error":"#REF!"}},{"$f":"IF(#REF!=\"\",\"\",#REF!)","v":{"$error":"#REF!"}},{"$f":"IF(#REF!=\"\",\"\",#REF!)","v":{"$error":"#REF!"}},{"$f":"IF(#REF!=\"\",\"\",#REF!)","v":{"$error":"#REF!"}},{"$f":"IF(#REF!=\"\",\"\",#REF!)","v":{"$error":"#REF!"}},{"$f":"IF(#REF!=\"\",\"\",#REF!)","v":{"$error":"#REF!"}}]
[{"$f":"#REF!","v":{"$error":"#REF!"}},{"$f":"#REF!","v":{"$error":"#REF!"}},{"$f":"#REF!","v":{"$error":"#REF!"}},{"$f":"#REF!","v":{"$error":"#REF!"}},{"$f":"#REF!","v":{"$error":"#REF!"}},{"$f":"#REF!","v":{"$error":"#REF!"}},{"$f":"#REF!","v":{"$error":"#REF!"}},{"$f":"#REF!","v":{"$error":"#REF!"}},{"$f":"#REF!","v":{"$error":"#REF!"}},{"$f":"#REF!","v":{"$error":"#REF!"}},{"$f":"#REF!","v":{"$error":"#REF!"}},{"$f":"#REF!","v":{"$error":"#REF!"}},{"$f":"#REF!","v":{"$error":"#REF!"}},{"$f":"#REF!","v":{"$error":"#REF!"}},{"$f":"#REF!","v":{"$error":"#REF!"}},{"$f":"#REF!","v":{"$error":"#REF!"}}]
[{"$f":"#REF!","v":{"$error":"#REF!"}},{"$f":"#REF!","v":{"$error":"#REF!"}},{"$f":"#REF!","v":{"$error":"#REF!"}},{"$f":"#REF!","v":{"$error":"#REF!"}},{"$f":"#REF!","v":{"$error":"#REF!"}},{"$f":"IF(#REF!=\"\",\"\",#REF!)","v":{"$error":"#REF!"}},{"$f":"#REF!","v":{"$error":"#REF!"}},{"$f":"#REF!","v":{"$error":"#REF!"}},{"$f":"#REF!","v":{"$error":"#REF!"}},{"$f":"#REF!","v":{"$error":"#REF!"}},{"$f":"#REF!","v":{"$error":"#REF!"}},{"$f":"#REF!","v":{"$error":"#REF!"}},{"$f":"#REF!","v":{"$error":"#REF!"}},{"$f":"#REF!","v":{"$error":"#REF!"}},{"$f":"IF(#REF!=\"\",\"\",#REF!)","v":{"$error":"#REF!"}},{"$f":"IF(#REF!=\"\",\"\",#REF!)","v":{"$error":"#REF!"}}]
[{"$f":"'FW nonmetal nonplant'!B11","v":"No."},{"$f":"'FW nonmetal nonplant'!B13","v":1},{"$f":"'FW nonmetal nonplant'!B16","v":2},{"$f":"'FW nonmetal nonplant'!B19","v":3},{"$f":"'FW nonmetal nonplant'!B21","v":4},{"$f":"'FW nonmetal nonplant'!B23","v":5},{"$f":"'FW nonmetal nonplant'!B26","v":6},{"$f":"'FW nonmetal nonplant'!B29","v":7},{"$f":"'FW nonmetal nonplant'!B32","v":8},{"$f":"'FW nonmetal nonplant'!B35","v":9},{"$f":"'FW nonmetal nonplant'!B39","v":10},{"$f":"'FW nonmetal nonplant'!B42","v":11},{"$f":"'FW nonmetal nonplant'!B45","v":12},{"$f":"'FW nonmetal nonplant'!B48","v":13},{"$f":"'FW nonmetal nonplant'!B51","v":14},{"$f":"'FW nonmetal nonplant'!B53","v":15},{"$f":"'FW nonmetal nonplant'!B58","v":16.10},{"$f":"'FW nonmetal nonplant'!B61","v":16.20},{"$f":"'FW nonmetal nonplant'!B64","v":17},{"$f":"'FW nonmetal nonplant'!B67","v":18},{"$f":"'FW nonmetal nonplant'!C72","v":"Total score"},{"$f":"'FW nonmetal nonplant'!C74","v":"Quality Score"}]
[{"$f":"'FW nonmetal nonplant'!C2","v":"Category"},{"$f":"'FW nonmetal nonplant'!E2","v":"Freshwater/non-metal/non- plant"},{"$f":"'FW nonmetal nonplant'!C3","v":"Paper and data unique identifier(eg. 1-1,10-150)"},{"$f":"'FW nonmetal nonplant'!E3","v":"3104-2"}]
[{"$f":"'FW nonmetal nonplant'!G11","v":"Scores"},{"$f":"'FW nonmetal nonplant'!G12","v":10},{"$f":"'FW nonmetal nonplant'!G15","v":10},{"$f":"'FW nonmetal nonplant'!G18","v":5},{"$f":"'FW nonmetal nonplant'!G21","v":5},{"$f":"'FW nonmetal nonplant'!G23","v":5},{"$f":"'FW nonmetal nonplant'!G26","v":5},{"$f":"'FW nonmetal nonplant'!G29","v":5},{"$f":"'FW nonmetal nonplant'!G32","v":0},{"$f":"'FW nonmetal nonplant'!G35","v":0},{"$f":"'FW nonmetal nonplant'!G38","v":4},{"$f":"'FW nonmetal nonplant'!G41","v":0},{"$f":"'FW nonmetal nonplant'!G44","v":0},{"$f":"'FW nonmetal nonplant'!G47","v":0},{"$f":"'FW nonmetal nonplant'!G50","v":4},{"$f":"'FW nonmetal nonplant'!G53","v":0},{"$f":"'FW nonmetal nonplant'!G57","v":0},{"$f":"'FW nonmetal nonplant'!G60","v":3},{"$f":"'FW nonmetal nonplant'!G63","v":3},{"$f":"'FW nonmetal nonplant'!G66","v":3},{"$f":"'FW nonmetal nonplant'!G72","v":62},{"$f":"'FW nonmetal nonplant'!G74","v":0.68131868131868134},null,{"$f":"'FW nonmetal nonplant'!H74","v":"The highest possible grade for this datum is acceptable."}]
[{"$f":"'FW nonmetal nonplant'!H11","v":"Answers"},{"$f":"IF('FW nonmetal nonplant'!H12=\"\",\"\",'FW nonmetal nonplant'!H12)","v":"21 days"},{"$f":"IF('FW nonmetal nonplant'!H15=\"\",\"\",'FW nonmetal nonplant'!H15)","v":"Reproduction"},{"$f":"IF('FW nonmetal nonplant'!H18=\"\",\"\",'FW nonmetal nonplant'!H18)","v":"LOEC"},{"$f":"IF('FW nonmetal nonplant'!H21=\"\",\"\",'FW nonmetal nonplant'!H21)","v":"LOEC"},{"$f":"IF('FW nonmetal nonplant'!H23=\"\",\"\",'FW nonmetal nonplant'!H23)","v":"Based on guideline - every test should include controls consisting of the same dilution water"},{"$f":"IF('FW nonmetal nonplant'!H26=\"\",\"\",'FW nonmetal nonplant'!H26)","v":"Based on guideline - in static-renewal tests: 10 or more replicates of one daphnid each for each concentration should be used"},{"$f":"IF('FW nonmetal nonplant'!H29=\"\",\"\",'FW nonmetal nonplant'!H29)","v":"USEPA Guideline 72-4 (Superceded by USEPA (1996) OPPTS 850.1300)"},{"$f":"IF('FW nonmetal nonplant'!H32=\"\",\"\",'FW nonmetal nonplant'!H32)","v":"Based on guideline - neonates (< 24 hours old) should be used for testing"},{"$f":"IF('FW nonmetal nonplant'!H35=\"\",\"\",'FW nonmetal nonplant'!H35)","v":"Not stated but based on guidelines should be surface or groundwater, reconstituted or dechlorinated tap water"},{"$f":"IF('FW nonmetal nonplant'!H38=\"\",\"\",'FW nonmetal nonplant'!H38)","v":"Static renewal"},{"$f":"IF('FW nonmetal nonplant'!H41=\"\",\"\",'FW nonmetal nonplant'!H41)","v":"Not stated"},{"$f":"IF('FW nonmetal nonplant'!H44=\"\",\"\",'FW nonmetal nonplant'!H44)","v":"Not stated"},{"$f":"IF('FW nonmetal nonplant'!H47=\"\",\"\",'FW nonmetal nonplant'!H47)","v":"Not stated"},{"$f":"IF('FW nonmetal nonplant'!H50=\"\",\"\",'FW nonmetal nonplant'!H50)","v":"Based on guideline - appropriate statistical analysis ie ANOVA, mean separation test should be conducted to test for significant effects"},{"$f":"IF('FW nonmetal nonplant'!H53=\"\",\"\",'FW nonmetal nonplant'!H53)","v":"Not stated"},{"$f":"IF('FW nonmetal nonplant'!H57=\"\",\"\",'FW nonmetal nonplant'!H57)","v":""},{"$f":"IF('FW nonmetal nonplant'!H60=\"\",\"\",'FW nonmetal nonplant'!H60)","v":"Based on guideline should be between 60 and 105 % saturation"},{"$f":"IF('FW nonmetal nonplant'!H63=\"\",\"\",'FW nonmetal nonplant'!H63)","v":"Based on guideline should be 19-21oC"},{"$f":"IF('FW nonmetal nonplant'!H66=\"\",\"\",'FW nonmetal nonplant'!H66)","v":"99.7% purity"}]
[{"$f":"'FW nonmetal nonplant'!G3","v":"Species (Scientific name)"},{"$f":"'FW nonmetal nonplant'!G4","v":"Lifestage"},{"$f":"'FW nonmetal nonplant'!G5","v":"Exposure duration"},{"$f":"'FW nonmetal nonplant'!G6","v":"Measure of toxicity"},{"$f":"'FW nonmetal nonplant'!G7","v":"Toxicity endpoint"},{"$f":"'FW nonmetal nonplant'!G8","v":"Toxicity value"},{"$f":"'FW nonmetal nonplant'!J2","v":"Taxonomic group"},{"$f":"'FW nonmetal nonplant'!J3","v":"Phylum"},{"$f":"'FW nonmetal nonplant'!J4","v":"Class"},{"$f":"'FW nonmetal nonplant'!J5","v":"Media"},{"$f":"'FW nonmetal nonplant'!J6","v":"Temperature "},{"$f":"'FW nonmetal nonplant'!J7","v":"Acute Or Chronic "},{"$f":"'FW nonmetal nonplant'!J8","v":"PH"},{"$f":"'FW nonmetal nonplant'!J9","v":"Salinity/Conductivity"},{"$f":"'FW nonmetal nonplant'!C4","v":"Citation"},{"$f":"'FW nonmetal nonplant'!G2","v":"Citation No."}]
[{"$f":"'FW nonmetal nonplant'!Q3","v":"Daphnia magna"},{"$f":"'FW nonmetal nonplant'!T3","v":"Neonate"},{"$f":"'FW nonmetal nonplant'!W3","v":"21 days"},{"$f":"'FW nonmetal nonplant'!Z3","v":"LOEC"},{"$f":"'FW nonmetal nonplant'!AC3","v":"Reproduction"},{"$f":"IF('FW nonmetal nonplant'!H8=\"\",\"\",'FW nonmetal nonplant'!H8)","v":"0.0744 ug/L"},{"$f":"'FW nonmetal nonplant'!AF3","v":"Macroinvertebrate"},{"$f":"'FW nonmetal nonplant'!AI3","v":"Arthropoda"},{"$f":"'FW nonmetal nonplant'!AL3","v":"Branchiopoda"},{"$f":"'FW nonmetal nonplant'!AO3","v":"NA"},{"$f":"'FW nonmetal nonplant'!AR3","v":"NA"},{"$f":"'FW nonmetal nonplant'!AU3","v":"Chronic"},{"$f":"'FW nonmetal nonplant'!AX3","v":"NA"},{"$f":"'FW nonmetal nonplant'!BA3","v":"N.A."},{"$f":"IF('FW nonmetal nonplant'!E4=\"\",\"\",'FW nonmetal nonplant'!E4)","v":"OPP Pesticide Ecotoxicity Database - Alpha-cypermethrin. Accessed 16 April 19"},{"$f":"IF('FW nonmetal nonplant'!H2=\"\",\"\",'FW nonmetal nonplant'!H2)","v":"3104"}]
[{"$f":"#REF!","v":{"$error":"#REF!"}},{"$f":"#REF!","v":{"$error":"#REF!"}},{"$f":"#REF!","v":{"$error":"#REF!"}},{"$f":"#REF!","v":{"$error":"#REF!"}},{"$f":"#REF!","v":{"$error":"#REF!"}},{"$f":"#REF!","v":{"$error":"#REF!"}},{"$f":"#REF!","v":{"$error":"#REF!"}},{"$f":"#REF!","v":{"$error":"#REF!"}},{"$f":"#REF!","v":{"$error":"#REF!"}},{"$f":"#REF!","v":{"$error":"#REF!"}},{"$f":"#REF!","v":{"$error":"#REF!"}},{"$f":"#REF!","v":{"$error":"#REF!"}},{"$f":"#REF!","v":{"$error":"#REF!"}},{"$f":"#REF!","v":{"$error":"#REF!"}},{"$f":"#REF!","v":{"$error":"#REF!"}},{"$f":"#REF!","v":{"$error":"#REF!"}},{"$f":"#REF!","v":{"$error":"#REF!"}},{"$f":"#REF!","v":{"$error":"#REF!"}},{"$f":"#REF!","v":{"$error":"#REF!"}},{"$f":"#REF!","v":{"$error":"#REF!"}},{"$f":"#REF!","v":{"$error":"#REF!"}},{"$f":"#REF!","v":{"$error":"#REF!"}},{"$f":"#REF!","v":{"$error":"#REF!"}},{"$f":"#REF!","v":{"$error":"#REF!"}},{"$f":"#REF!","v":{"$error":"#REF!"}}]
[{"$f":"#REF!","v":{"$error":"#REF!"}},{"$f":"#REF!","v":{"$error":"#REF!"}},{"$f":"#REF!","v":{"$error":"#REF!"}},{"$f":"#REF!","v":{"$error":"#REF!"}}]
[{"$f":"#REF!","v":{"$error":"#REF!"}},{"$f":"#REF!","v":{"$error":"#REF!"}},{"$f":"#REF!","v":{"$error":"#REF!"}},{"$f":"#REF!","v":{"$error":"#REF!"}},{"$f":"#REF!","v":{"$error":"#REF!"}},{"$f":"#REF!","v":{"$error":"#REF!"}},{"$f":"#REF!","v":{"$error":"#REF!"}},{"$f":"#REF!","v":{"$error":"#REF!"}},{"$f":"#REF!","v":{"$error":"#REF!"}},{"$f":"#REF!","v":{"$error":"#REF!"}},{"$f":"#REF!","v":{"$error":"#REF!"}},{"$f":"#REF!","v":{"$error":"#REF!"}},{"$f":"#REF!","v":{"$error":"#REF!"}},{"$f":"#REF!","v":{"$error":"#REF!"}},{"$f":"#REF!","v":{"$error":"#REF!"}},{"$f":"#REF!","v":{"$error":"#REF!"}},{"$f":"#REF!","v":{"$error":"#REF!"}},{"$f":"#REF!","v":{"$error":"#REF!"}},{"$f":"#REF!","v":{"$error":"#REF!"}},{"$f":"#REF!","v":{"$error":"#REF!"}},{"$f":"#REF!","v":{"$error":"#REF!"}},{"$f":"#REF!","v":{"$error":"#REF!"}},{"$f":"#REF!","v":{"$error":"#REF!"}},{"$f":"#REF!","v":{"$error":"#REF!"}},{"$f":"#REF!","v":{"$error":"#REF!"}},{"$f":"#REF!","v":{"$error":"#REF!"}}]
[{"$f":"#REF!","v":{"$error":"#REF!"}},{"$f":"IF(#REF!=\"\",\"\",#REF!)","v":{"$error":"#REF!"}},{"$f":"IF(#REF!=\"\",\"\",#REF!)","v":{"$error":"#REF!"}},{"$f":"IF(#REF!=\"\",\"\",#REF!)","v":{"$error":"#REF!"}},{"$f":"IF(#REF!=\"\",\"\",#REF!)","v":{"$error":"#REF!"}},{"$f":"IF(#REF!=\"\",\"\",#REF!)","v":{"$error":"#REF!"}},{"$f":"IF(#REF!=\"\",\"\",#REF!)","v":{"$error":"#REF!"}},{"$f":"IF(#REF!=\"\",\"\",#REF!)","v":{"$error":"#REF!"}},{"$f":"IF(#REF!=\"\",\"\",#REF!)","v":{"$error":"#REF!"}},{"$f":"IF(#REF!=\"\",\"\",#REF!)","v":{"$error":"#REF!"}},{"$f":"IF(#REF!=\"\",\"\",#REF!)","v":{"$error":"#REF!"}},{"$f":"IF(#REF!=\"\",\"\",#REF!)","v":{"$error":"#REF!"}},{"$f":"IF(#REF!=\"\",\"\",#REF!)","v":{"$error":"#REF!"}},{"$f":"IF(#REF!=\"\",\"\",#REF!)","v":{"$error":"#REF!"}},{"$f":"IF(#REF!=\"\",\"\",#REF!)","v":{"$error":"#REF!"}},{"$f":"IF(#REF!=\"\",\"\",#REF!)","v":{"$error":"#REF!"}},{"$f":"IF(#REF!=\"\",\"\",#REF!)","v":{"$error":"#REF!"}},{"$f":"IF(#REF!=\"\",\"\",#REF!)","v":{"$error":"#REF!"}},{"$f":"IF(#REF!=\"\",\"\",#REF!)","v":{"$error":"#REF!"}},{"$f":"IF(#REF!=\"\",\"\",#REF!)","v":{"$error":"#REF!"}},{"$f":"IF(#REF!=\"\",\"\",#REF!)","v":{"$error":"#REF!"}},{"$f":"IF(#REF!=\"\",\"\",#REF!)","v":{"$error":"#REF!"}},{"$f":"IF(#REF!=\"\",\"\",#REF!)","v":{"$error":"#REF!"}}]
[{"$f":"#REF!","v":{"$error":"#REF!"}},{"$f":"#REF!","v":{"$error":"#REF!"}},{"$f":"#REF!","v":{"$error":"#REF!"}},{"$f":"#REF!","v":{"$error":"#REF!"}},{"$f":"#REF!","v":{"$error":"#REF!"}},{"$f":"#REF!","v":{"$error":"#REF!"}},{"$f":"#REF!","v":{"$error":"#REF!"}},{"$f":"#REF!","v":{"$error":"#REF!"}},{"$f":"#REF!","v":{"$error":"#REF!"}},{"$f":"#REF!","v":{"$error":"#REF!"}},{"$f":"#REF!","v":{"$error":"#REF!"}},{"$f":"#REF!","v":{"$error":"#REF!"}},{"$f":"#REF!","v":{"$error":"#REF!"}},{"$f":"#REF!","v":{"$error":"#REF!"}},{"$f":"#REF!","v":{"$error":"#REF!"}},{"$f":"#REF!","v":{"$error":"#REF!"}}]
[{"$f":"#REF!","v":{"$error":"#REF!"}},{"$f":"#REF!","v":{"$error":"#REF!"}},{"$f":"#REF!","v":{"$error":"#REF!"}},{"$f":"#REF!","v":{"$error":"#REF!"}},{"$f":"#REF!","v":{"$error":"#REF!"}},{"$f":"IF(#REF!=\"\",\"\",#REF!)","v":{"$error":"#REF!"}},{"$f":"#REF!","v":{"$error":"#REF!"}},{"$f":"#REF!","v":{"$error":"#REF!"}},{"$f":"#REF!","v":{"$error":"#REF!"}},{"$f":"#REF!","v":{"$error":"#REF!"}},{"$f":"#REF!","v":{"$error":"#REF!"}},{"$f":"#REF!","v":{"$error":"#REF!"}},{"$f":"#REF!","v":{"$error":"#REF!"}},{"$f":"#REF!","v":{"$error":"#REF!"}},{"$f":"IF(#REF!=\"\",\"\",#REF!)","v":{"$error":"#REF!"}},{"$f":"IF(#REF!=\"\",\"\",#REF!)","v":{"$error":"#REF!"}}]
[{"$f":"#REF!","v":{"$error":"#REF!"}},{"$f":"#REF!","v":{"$error":"#REF!"}},{"$f":"#REF!","v":{"$error":"#REF!"}},{"$f":"#REF!","v":{"$error":"#REF!"}},{"$f":"#REF!","v":{"$error":"#REF!"}},{"$f":"#REF!","v":{"$error":"#REF!"}},{"$f":"#REF!","v":{"$error":"#REF!"}},{"$f":"#REF!","v":{"$error":"#REF!"}},{"$f":"#REF!","v":{"$error":"#REF!"}},{"$f":"#REF!","v":{"$error":"#REF!"}},{"$f":"#REF!","v":{"$error":"#REF!"}},{"$f":"#REF!","v":{"$error":"#REF!"}},{"$f":"#REF!","v":{"$error":"#REF!"}},{"$f":"#REF!","v":{"$error":"#REF!"}},{"$f":"#REF!","v":{"$error":"#REF!"}},{"$f":"#REF!","v":{"$error":"#REF!"}},{"$f":"#REF!","v":{"$error":"#REF!"}},{"$f":"#REF!","v":{"$error":"#REF!"}},{"$f":"#REF!","v":{"$error":"#REF!"}},{"$f":"#REF!","v":{"$error":"#REF!"}},{"$f":"#REF!","v":{"$error":"#REF!"}},{"$f":"#REF!","v":{"$error":"#REF!"}},{"$f":"#REF!","v":{"$error":"#REF!"}}]
[{"$f":"#REF!","v":{"$error":"#REF!"}},{"$f":"#REF!","v":{"$error":"#REF!"}},{"$f":"#REF!","v":{"$error":"#REF!"}},{"$f":"#REF!","v":{"$error":"#REF!"}}]
[{"$f":"#REF!","v":{"$error":"#REF!"}},{"$f":"#REF!","v":{"$error":"#REF!"}},{"$f":"#REF!","v":{"$error":"#REF!"}},{"$f":"#REF!","v":{"$error":"#REF!"}},{"$f":"#REF!","v":{"$error":"#REF!"}},{"$f":"#REF!","v":{"$error":"#REF!"}},{"$f":"#REF!","v":{"$error":"#REF!"}},{"$f":"#REF!","v":{"$error":"#REF!"}},{"$f":"#REF!","v":{"$error":"#REF!"}},{"$f":"#REF!","v":{"$error":"#REF!"}},{"$f":"#REF!","v":{"$error":"#REF!"}},{"$f":"#REF!","v":{"$error":"#REF!"}},{"$f":"#REF!","v":{"$error":"#REF!"}},{"$f":"#REF!","v":{"$error":"#REF!"}},{"$f":"#REF!","v":{"$error":"#REF!"}},{"$f":"#REF!","v":{"$error":"#REF!"}},{"$f":"#REF!","v":{"$error":"#REF!"}},{"$f":"#REF!","v":{"$error":"#REF!"}},{"$f":"#REF!","v":{"$error":"#REF!"}},{"$f":"#REF!","v":{"$error":"#REF!"}},{"$f":"#REF!","v":{"$error":"#REF!"}},{"$f":"#REF!","v":{"$error":"#REF!"}},{"$f":"#REF!","v":{"$error":"#REF!"}},{"$f":"#REF!","v":{"$error":"#REF!"}}]
[{"$f":"#REF!","v":{"$error":"#REF!"}},{"$f":"IF(#REF!=\"\",\"\",#REF!)","v":{"$error":"#REF!"}},{"$f":"IF(#REF!=\"\",\"\",#REF!)","v":{"$error":"#REF!"}},{"$f":"IF(#REF!=\"\",\"\",#REF!)","v":{"$error":"#REF!"}},{"$f":"IF(#REF!=\"\",\"\",#REF!)","v":{"$error":"#REF!"}},{"$f":"IF(#REF!=\"\",\"\",#REF!)","v":{"$error":"#REF!"}},{"$f":"IF(#REF!=\"\",\"\",#REF!)","v":{"$error":"#REF!"}},{"$f":"IF(#REF!=\"\",\"\",#REF!)","v":{"$error":"#REF!"}},{"$f":"IF(#REF!=\"\",\"\",#REF!)","v":{"$error":"#REF!"}},{"$f":"IF(#REF!=\"\",\"\",#REF!)","v":{"$error":"#REF!"}},{"$f":"IF(#REF!=\"\",\"\",#REF!)","v":{"$error":"#REF!"}},{"$f":"IF(#REF!=\"\",\"\",#REF!)","v":{"$error":"#REF!"}},{"$f":"IF(#REF!=\"\",\"\",#REF!)","v":{"$error":"#REF!"}},{"$f":"IF(#REF!=\"\",\"\",#REF!)","v":{"$error":"#REF!"}},{"$f":"IF(#REF!=\"\",\"\",#REF!)","v":{"$error":"#REF!"}},{"$f":"IF(#REF!=\"\",\"\",#REF!)","v":{"$error":"#REF!"}},{"$f":"IF(#REF!=\"\",\"\",#REF!)","v":{"$error":"#REF!"}},{"$f":"IF(#REF!=\"\",\"\",#REF!)","v":{"$error":"#REF!"}},{"$f":"IF(#REF!=\"\",\"\",#REF!)","v":{"$error":"#REF!"}},{"$f":"IF(#REF!=\"\",\"\",#REF!)","v":{"$error":"#REF!"}},{"$f":"IF(#REF!=\"\",\"\",#REF!)","v":{"$error":"#REF!"}}]
[{"$f":"#REF!","v":{"$error":"#REF!"}},{"$f":"#REF!","v":{"$error":"#REF!"}},{"$f":"#REF!","v":{"$error":"#REF!"}},{"$f":"#REF!","v":{"$error":"#REF!"}},{"$f":"#REF!","v":{"$error":"#REF!"}},{"$f":"#REF!","v":{"$error":"#REF!"}},{"$f":"#REF!","v":{"$error":"#REF!"}},{"$f":"#REF!","v":{"$error":"#REF!"}},{"$f":"#REF!","v":{"$error":"#REF!"}},{"$f":"#REF!","v":{"$error":"#REF!"}},{"$f":"#REF!","v":{"$error":"#REF!"}},{"$f":"#REF!","v":{"$error":"#REF!"}},{"$f":"#REF!","v":{"$error":"#REF!"}},{"$f":"#REF!","v":{"$error":"#REF!"}},{"$f":"#REF!","v":{"$error":"#REF!"}},{"$f":"#REF!","v":{"$error":"#REF!"}}]
[{"$f":"#REF!","v":{"$error":"#REF!"}},{"$f":"#REF!","v":{"$error":"#REF!"}},{"$f":"#REF!","v":{"$error":"#REF!"}},{"$f":"#REF!","v":{"$error":"#REF!"}},{"$f":"#REF!","v":{"$error":"#REF!"}},{"$f":"IF(#REF!=\"\",\"\",#REF!)","v":{"$error":"#REF!"}},{"$f":"#REF!","v":{"$error":"#REF!"}},{"$f":"#REF!","v":{"$error":"#REF!"}},{"$f":"#REF!","v":{"$error":"#REF!"}},{"$f":"#REF!","v":{"$error":"#REF!"}},{"$f":"#REF!","v":{"$error":"#REF!"}},{"$f":"#REF!","v":{"$error":"#REF!"}},{"$f":"#REF!","v":{"$error":"#REF!"}},{"$f":"#REF!","v":{"$error":"#REF!"}},{"$f":"IF(#REF!=\"\",\"\",#REF!)","v":{"$error":"#REF!"}},{"$f":"IF(#REF!=\"\",\"\",#REF!)","v":{"$error":"#REF!"}}]
[{"$f":"#REF!","v":{"$error":"#REF!"}},{"$f":"#REF!","v":{"$error":"#REF!"}},{"$f":"#REF!","v":{"$error":"#REF!"}},{"$f":"#REF!","v":{"$error":"#REF!"}},{"$f":"#REF!","v":{"$error":"#REF!"}},{"$f":"#REF!","v":{"$error":"#REF!"}},{"$f":"#REF!","v":{"$error":"#REF!"}},{"$f":"#REF!","v":{"$error":"#REF!"}},{"$f":"#REF!","v":{"$error":"#REF!"}},{"$f":"#REF!","v":{"$error":"#REF!"}},{"$f":"#REF!","v":{"$error":"#REF!"}},{"$f":"#REF!","v":{"$error":"#REF!"}},{"$f":"#REF!","v":{"$error":"#REF!"}},{"$f":"#REF!","v":{"$error":"#REF!"}},{"$f":"#REF!","v":{"$error":"#REF!"}},{"$f":"#REF!","v":{"$error":"#REF!"}},{"$f":"#REF!","v":{"$error":"#REF!"}},{"$f":"#REF!","v":{"$error":"#REF!"}},{"$f":"#REF!","v":{"$error":"#REF!"}},{"$f":"#REF!","v":{"$error":"#REF!"}},{"$f":"#REF!","v":{"$error":"#REF!"}},{"$f":"#REF!","v":{"$error":"#REF!"}}]
[{"$f":"#REF!","v":{"$error":"#REF!"}},{"$f":"#REF!","v":{"$error":"#REF!"}},{"$f":"#REF!","v":{"$error":"#REF!"}},{"$f":"#REF!","v":{"$error":"#REF!"}}]
[{"$f":"#REF!","v":{"$error":"#REF!"}},{"$f":"#REF!","v":{"$error":"#REF!"}},{"$f":"#REF!","v":{"$error":"#REF!"}},{"$f":"#REF!","v":{"$error":"#REF!"}},{"$f":"#REF!","v":{"$error":"#REF!"}},{"$f":"#REF!","v":{"$error":"#REF!"}},{"$f":"#REF!","v":{"$error":"#REF!"}},{"$f":"#REF!","v":{"$error":"#REF!"}},{"$f":"#REF!","v":{"$error":"#REF!"}},{"$f":"#REF!","v":{"$error":"#REF!"}},{"$f":"#REF!","v":{"$error":"#REF!"}},{"$f":"#REF!","v":{"$error":"#REF!"}},{"$f":"#REF!","v":{"$error":"#REF!"}},{"$f":"#REF!","v":{"$error":"#REF!"}},{"$f":"#REF!","v":{"$error":"#REF!"}},{"$f":"#REF!","v":{"$error":"#REF!"}},{"$f":"#REF!","v":{"$error":"#REF!"}},{"$f":"#REF!","v":{"$error":"#REF!"}},{"$f":"#REF!","v":{"$error":"#REF!"}},{"$f":"#REF!","v":{"$error":"#REF!"}},{"$f":"#REF!","v":{"$error":"#REF!"}},{"$f":"#REF!","v":{"$error":"#REF!"}},{"$f":"#REF!","v":{"$error":"#REF!"}}]
[{"$f":"#REF!","v":{"$error":"#REF!"}},{"$f":"IF(#REF!=\"\",\"\",#REF!)","v":{"$error":"#REF!"}},{"$f":"IF(#REF!=\"\",\"\",#REF!)","v":{"$error":"#REF!"}},{"$f":"IF(#REF!=\"\",\"\",#REF!)","v":{"$error":"#REF!"}},{"$f":"IF(#REF!=\"\",\"\",#REF!)","v":{"$error":"#REF!"}},{"$f":"IF(#REF!=\"\",\"\",#REF!)","v":{"$error":"#REF!"}},{"$f":"IF(#REF!=\"\",\"\",#REF!)","v":{"$error":"#REF!"}},{"$f":"IF(#REF!=\"\",\"\",#REF!)","v":{"$error":"#REF!"}},{"$f":"IF(#REF!=\"\",\"\",#REF!)","v":{"$error":"#REF!"}},{"$f":"IF(#REF!=\"\",\"\",#REF!)","v":{"$error":"#REF!"}},{"$f":"IF(#REF!=\"\",\"\",#REF!)","v":{"$error":"#REF!"}},{"$f":"IF(#REF!=\"\",\"\",#REF!)","v":{"$error":"#REF!"}},{"$f":"IF(#REF!=\"\",\"\",#REF!)","v":{"$error":"#REF!"}},{"$f":"IF(#REF!=\"\",\"\",#REF!)","v":{"$error":"#REF!"}},{"$f":"IF(#REF!=\"\",\"\",#REF!)","v":{"$error":"#REF!"}},{"$f":"IF(#REF!=\"\",\"\",#REF!)","v":{"$error":"#REF!"}},{"$f":"IF(#REF!=\"\",\"\",#REF!)","v":{"$error":"#REF!"}},{"$f":"IF(#REF!=\"\",\"\",#REF!)","v":{"$error":"#REF!"}},{"$f":"IF(#REF!=\"\",\"\",#REF!)","v":{"$error":"#REF!"}},{"$f":"IF(#REF!=\"\",\"\",#REF!)","v":{"$error":"#REF!"}}]
[{"$f":"#REF!","v":{"$error":"#REF!"}},{"$f":"#REF!","v":{"$error":"#REF!"}},{"$f":"#REF!","v":{"$error":"#REF!"}},{"$f":"#REF!","v":{"$error":"#REF!"}},{"$f":"#REF!","v":{"$error":"#REF!"}},{"$f":"#REF!","v":{"$error":"#REF!"}},{"$f":"#REF!","v":{"$error":"#REF!"}},{"$f":"#REF!","v":{"$error":"#REF!"}},{"$f":"#REF!","v":{"$error":"#REF!"}},{"$f":"#REF!","v":{"$error":"#REF!"}},{"$f":"#REF!","v":{"$error":"#REF!"}},{"$f":"#REF!","v":{"$error":"#REF!"}},{"$f":"#REF!","v":{"$error":"#REF!"}},{"$f":"#REF!","v":{"$error":"#REF!"}},{"$f":"#REF!","v":{"$error":"#REF!"}},{"$f":"#REF!","v":{"$error":"#REF!"}}]
[{"$f":"#REF!","v":{"$error":"#REF!"}},{"$f":"#REF!","v":{"$error":"#REF!"}},{"$f":"#REF!","v":{"$error":"#REF!"}},{"$f":"#REF!","v":{"$error":"#REF!"}},{"$f":"#REF!","v":{"$error":"#REF!"}},{"$f":"IF(#REF!=\"\",\"\",#REF!)","v":{"$error":"#REF!"}},{"$f":"#REF!","v":{"$error":"#REF!"}},{"$f":"#REF!","v":{"$error":"#REF!"}},{"$f":"#REF!","v":{"$error":"#REF!"}},{"$f":"#REF!","v":{"$error":"#REF!"}},{"$f":"#REF!","v":{"$error":"#REF!"}},{"$f":"#REF!","v":{"$error":"#REF!"}},{"$f":"#REF!","v":{"$error":"#REF!"}},{"$f":"#REF!","v":{"$error":"#REF!"}},{"$f":"IF(#REF!=\"\",\"\",#REF!)","v":{"$error":"#REF!"}},{"$f":"IF(#REF!=\"\",\"\",#REF!)","v":{"$error":"#REF!"}}]

{"sheet":"FW nonmetal nonplant","index":5,"n_rows":104,"n_cols":53,"rows_kept":104,"cut":false,"hidden":false,"merged":[[65,2,68,2],[65,7,68,7],[59,7,61,7],[52,2,54,2],[52,7,54,7],[56,7,58,7],[62,2,64,2],[62,7,64,7],[43,2,45,2],[43,7,45,7],[46,2,48,2],[46,7,48,7],[49,2,51,2],[49,7,51,7],[34,2,36,2],[34,7,36,7],[37,2,39,2],[37,7,39,7],[40,2,42,2],[40,7,42,7],[25,2,27,2],[25,7,27,7],[28,2,30,2],[28,7,30,7],[31,2,33,2],[31,7,33,7],[17,2,19,2],[17,7,19,7],[20,2,21,2],[20,7,21,7],[22,2,24,2],[22,7,24,7],[3,4,7,4],[9,2,9,4],[11,2,13,2],[11,7,13,7],[14,2,16,2],[14,7,16,7]]}
[null,1,"Fill in the blank cells below, based on information provided in the paper being assessed. You can either pick an option from the dropdown list or add the appropriate detail using the 'Add to list' button. ",null,null,null,null,null,null,null,null,null,null,null,"* All the text in RED are used for drop down list ,make changes with caution."]
[null,null,"Category",{"$f":"IF(AF3=\"\",0,1)","v":1},"Freshwater/non-metal/non- plant",{"$f":"IF(E3=\"\",0,1)","v":1},"Citation No.",{"$f":"IF(ISERROR(FIND(\"-\",E3)),E3,LEFT(E3,FIND(\"-\",E3)-1))","v":"3104"},null,"Taxonomic group",null,null,null,null,"Species",null,null,"Lifestage",null,null,"Exposure duration",null,null,"Measure of toxicity",null,null,"Toxicity endpoint",null,null,"Taxonomic group",null,null,"Phylum",null,null,"Class",null,null,"Media",null,null,"Temperature ",null,null,"Acute Or Chronic",null,null,"PH",null,null,"Salinity/Comdictivity"]
[null,null,"Paper and data unique identifier(eg. 1-1,10-150)",{"$f":"IF(AI3=\"\",0,1)","v":1},"3104-2",{"$f":"IF(E4=\"\",0,1)","v":1},"Species (Scientific name)",null,null,"Phylum",null,null,null,null,"Acanthocyclops robustus",31,{"$f":"IF(P3=0,\"\",INDEX(O3:O102,P3))","v":"Daphnia magna"},"<120 days post h atch",46,{"$f":"IF(S3=0,\"\",INDEX(R3:R102,S3))","v":"Neonate"},"10 day",51,{"$f":"IF(V3=0,\"\",INDEX(U3:U102,V3))","v":"21 days"},"EC10",15,{"$f":"IF(Y3=0,\"\",INDEX(X3:X102,Y3))","v":"LOEC"},"ability to cling",42,{"$f":"IF(AB3=0,\"\",INDEX(AA3:AA102,AB3))","v":"Reproduction"},"Amphibian",9,{"$f":"IF(AE3=0,\"\",INDEX(AD3:AD102,AE3))","v":"Macroinvertebrate"},"\tChytridiomycota",5,{"$f":"IF(AH3=0,\"\",INDEX(AG3:AG102,AH3))","v":"Arthropoda"},"\tOstracoda",6,{"$f":"IF(AK3=0,\"\",INDEX(AJ3:AJ102,AK3))","v":"Branchiopoda"},"algaltoxkit",58,{"$f":"IF(AN3=0,\"\",INDEX(AM3:AM102,AN3))","v":"NA"},8,75,{"$f":"IF(AQ3=0,\"\",INDEX(AP3:AP102,AQ3))","v":"NA"},"7.378-8.33",4,{"$f":"IF(AT3=0,\"\",INDEX(AS3:AS102,AT3))","v":"Chronic"},7,43,{"$f":"IF(AW3=0,\"\",INDEX(AV3:AV102,AW3))","v":"NA"},null,null,"N.A."]
[null,null,"Citation",{"$f":"IF(AL3=\"\",0,1)","v":1},"OPP Pesticide Ecotoxicity Database - Alpha-cypermethrin. Accessed 16 April 19",{"$f":"IF(H8=\"\",0,1)","v":1},"Lifestage",null,null,"Class",null,null,null,null,"Aedes aegypti",null,null,"<24h neonate f2 ",null,null,"11 hour",null,null,"EC50",null,null,"ability to swim",null,null,"Bacteria",null,null,"\tOomycota",null,null,"\tSordariomycetes",null,null,"artificial system water",null,null,10,null,null,"7.78-8.33",null,null,7.50]
[null,null,null,{"$f":"IF(AO3=\"\",0,1)","v":1},null,{"$f":"IF(W3=\"\",0,1)","v":1},"Exposure duration",null,null,"Media",null,null,null,null,"Aedes albopictus",null,null,"<24hr neonate",null,null,"1-2 weeks",null,null,"EC50",null,null,"ability to thrash when prodded",null,null,"Chordata",null,null,"\tRotifera",null,null,"Actinopterygii",null,null,"ATSM hardwater",null,null,12,null,null,"Acute ",null,null,7.50]
[null,null,null,{"$f":"IF(AR3=\"\",0,1)","v":1},null,{"$f":"IF(Q3=\"\",0,1)","v":1},"Measure of toxicity",null,null,"Temperature ",null,null,null,null,"Aedes albopictus",null,null,">23 days",null,null,"120hpf",null,null,"hatchability",null,null,"ability to walk/crawl",null,null,"Chromista",null,null,"Actinopterygii",null,null,"Amphibia",null,null,"Bore water",null,null,12,null,null,"Chronic",null,null,7.66]
[null,null,null,{"$f":"IF(AU3=\"\",0,1)","v":1},null,{"$f":"IF(T3=\"\",0,1)","v":1},"Toxicity endpoint",null,null,"Acute Or Chronic ",null,null,null,null,"Aedes albopictus HAmAal strain",null,null,">6 month ",null,null,"13 days",null,null,"IC25",null,null,"activity",null,null,"Fish",null,null,"Arthropoda",null,null,"Bivalvia",null,null,"CBS culture collection",null,null,12,null,null,"N.A.",null,null,7.67]
[null,null,null,null,null,{"$f":"IF(W3=\"\",0,1)","v":1},"Toxicity value","0.0744 ug/L",null,"PH",null,null,null,null,"Aedes albopictus Ikaken strain",null,null,"1 month",null,null,"14 days",null,null,"LC10",null,null,"Body length",null,null,"Fish",null,null,"Ascomycota",null,null,"Branchiopoda",null,null,"Clean river water",null,null,13,null,null,null,null,null,7.80]
[null,2,"Select the appropriate answer option to each question. Comments can be added to the cells in column H.",null,null,{"$f":"IF(Z3=\"\",0,1)","v":1},null,null,null,"Salinity/Conductivity","N.A.",null,null,null,"Aedes albopictus MAmAal strain",null,null,"1 year old",null,null,"19 days",null,null,"LC100",null,null,"Body weight",null,null,"Flagellate",null,null,"Basidiomycota",null,null,"Chlorophyceae  ",null,null,"Clean river watrer",null,null,13,null,null,null,null,null,8.10]
[null,"*","If the selected answer option does not work try clicking on any other cell first and then click back on the answer option again.",null,null,{"$f":"IF(AC3=\"\",0,1)","v":1},null,null,null,null,null,null,null,null,"Aedes albopictus SFmAal strain",null,null,"1st instar larvae",null,null,"21 day",null,null,"LC50",null,null,"Brood size",null,null,"Fungi",null,null,"Chlorophyta",null,null,"Chytridiomycetes",null,null,"Daphtoxkit",null,null,13,null,null,null,null,null,"6.5-7"]
[null,"No.","Question","Marks Awarded","Answer Options","Option References","Scores","Answers",null,null,null,null,null,null,"Aedes albopictus VBFmAal strain",null,null,"3rd brood",null,null,"24 hrs",null,null,"LC50",null,null,"brood survival",null,null,"Macroinvertebrate",null,null,"Chordata",null,null,"Cryptophyceae",null,null,"Dechlorinated tap water",null,null,14,null,null,null,null,null,"6.5-7.4"]
[null,null,"Was the duration of the exposure stated (e.g. 48 or 96 h)?",10,null,1,{"$f":"IF(F12=0,0,INDEX($D12:$D13,F12,1))","v":10},"21 days",null,null,null,null,null,null,"Aedes taeniorhynchus",null,null,"3rd brood neonate",null,null,"24h",null,null,"LC90",null,null,"Cell viability",null,null,"Macroinvertebrate",null,null,"Chordata",null,null,"Eurotatoria",null,null,"dechlorinated water",null,null,16,null,null,null,null,null,"6.6-7.2"]
[null,1,null,0,null,null,null,null,null,null,null,null,null,null,"AnopheIes quadrimaculatus",null,null,"3rd brood neonate <24hr",null,null,"24hr",null,null,"LC90",null,null,"Colour change",null,null,"Microalga",null,null,"Ciliophora",null,null,"Gammaproteobacteria",null,null,"deinonised reconstituted water",null,null,16,null,null,null,null,null,"6.8-7.5"]
[null,null,null,null,null,null,null,null,null,null,null,null,null,null,"Australian Bass",null,null,"4-5th instar larvae",null,null,"24hr",null,null,"LC95",null,null,"development",null,null,"Microinvertebrate",null,null,"Cryptophyta",null,null,"Insecta",null,null,"deionised sterile water",null,null,17,null,null,null,null,null,"7.1 ± 0.5"]
[null,null,"Was the biological endpoint (e.g. immobilization or population growth) stated and defined (10 marks)? Award 5 marks if the biological endpoint is only stated.",10,null,1,{"$f":"IF(F15=0,0,INDEX($D15:$D17,F15,1))","v":10},"Reproduction",null,null,null,null,null,null,"Baetis tricaudatus",null,null,"4th instar larvae",null,null,"25hr",null,null,"LD50",null,null,"Development",null,null,"N.A.",null,null,"Mollusca",null,null,"Malacostraca",null,null,"Deionised water",null,null,18,null,null,null,null,null,"7.3 ± 0.2"]
[null,2,null,5,null,null,null,null,null,null,null,null,null,null,"Batrachochytrium dendrobatidis",null,null,"5-7d adult",null,null,"26 days",null,null,"LOEC",null,null,"Developmental",null,null,"Rotifer",null,null,"N.A.",null,null,"N.A.",null,null,"Deionised water with added salts",null,null,18,null,null,null,null,null,"7.35-7.6"]
[null,null,null,0,null,null,null,null,null,null,null,null,null,null,"Batrachochytrium dendrobatidis",null,null,"5th instar larvae",null,null,"28 day",null,null,"LOEC",null,null,"Developmental",null,null,"Shrimp",null,null,"Proteobacteria",null,null,"Not assigned",null,null,"essential medium",null,null,19,null,null,null,null,null,"7.3-8.0"]
[null,null,"Was the biological effect stated (e.g. LC or NOEC)?",5,null,1,{"$f":"IF(F18=0,0,INDEX($D18:$D19,F18,1))","v":5},"LOEC",null,null,null,null,null,null,"Ceriodaphnia dubia",null,null,"6-11 g",null,null,"28 days",null,null,"LOEC",null,null,"Fecundity",null,null,"Mollusc",null,null,"Tracheophyta",null,null,"Prostomatea",null,null,"Filtered natural lake water",null,null,20,null,null,null,null,null,"7.51 ± 0.19"]
[null,3,null,0,null,null,null,null,null,null,null,null,null,null,"Chaoborus crystallinus",null,null,"6-9cm length",null,null,"28 days",null,null,"N.A.",null,null,"Feed assimilation",null,null,"Insect",null,null,"Zygomycota",null,null,"Tremellomycetes",null,null,"Freshwater",null,null,20,null,null,null,null,null,"7.6-7.75"]
[null,null,null,null,null,null,null,null,null,null,null,null,null,null,"Chironomus crassicaudatus",null,null,"7-11g",null,null,"28 dyas",null,null,"NOEC",null,null,"Foraging success",null,null,null,null,null,null,null,null,"Crustacea",null,null,"grown on tadpoles in freshwater",null,null,20,null,null,null,null,null,"7.6-8.2"]
[null,4,"Was the biological effect quantified (e.g. 50% effect, 25% effect)? \nNote: The effect for NOEC and LOEC data must be quantified.",5,null,1,{"$f":"IF(F21=0,0,INDEX($D21:$D22,F21,1))","v":5},"LOEC",null,null,null,null,null,null,"Chironomus dilutus",null,null,"adult",null,null,"32 day",null,null,"NOEC",null,null,"Gonad mass",null,null,null,null,null,null,null,null,"Gastropoda",null,null,"growth culture",null,null,20,null,null,null,null,null,"7.78-8.33"]
[null,null,null,0,null,null,null,null,null,null,null,null,null,null,"Colubotelson chiltoni minor",null,null,"Adult",null,null,"35 day",null,null,"NOEC",null,null,"Gonadosomatic index",null,null,null,null,null,null,null,null,null,null,null,"Lab water",null,null,20,null,null,null,null,null,"7.8 -+ 0.2"]
[null,5,"Were appropriate controls (e.g. a no-toxicant control and/or solvent control) used?",5,null,1,{"$f":"IF(F23=0,0,INDEX($D23:$D24,F23,1))","v":5},"Based on guideline - every test should include controls consisting of the same dilution water",null,null,null,null,null,null,"Cryptococcus flavescens",null,null,"Adult (7.1-10.5cm length)",null,null,"4 day",null,null,"NOEL",null,null,"granulocyte count",null,null,null,null,null,null,null,null,null,null,null,"malt extract broth",null,null,21,null,null,null,null,null,"7.8-8.1"]
[null,null,null,0,null,null,null,null,null,null,null,null,null,null,"Cryptomonas sp.",null,null,"adult female",null,null,"42 day",null,null,"NOEL",null,null,"Growth",null,null,null,null,null,null,null,null,null,null,null,"Marinewater",null,null,23,null,null,null,null,null,"7-7.2"]
[null,null,null,null,null,null,null,null,null,null,null,null,null,null,"Culex nigripalpus",null,null,"embryo",null,null,"45 days",null,null,null,null,null,"growth",null,null,null,null,null,null,null,null,null,null,null,"Martins rearing solution",null,null,23,null,null,null,null,null,"8 ± 0.2"]
[null,6,"Was each control and contaminant concentration at least duplicated?",5,null,1,{"$f":"IF(F26=0,0,INDEX($D26:$D27,F26,1))","v":5},"Based on guideline - in static-renewal tests: 10 or more replicates of one daphnid each for each concentration should be used",null,null,null,null,null,null,"Culex quinqefasciatus",null,null,"embryo",null,null,"48 hr",null,null,null,null,null,"growth inhibition",null,null,null,null,null,null,null,null,null,null,null,"Milli-Q water",null,null,23,null,null,null,null,null,"8.16-8.36"]
[null,null,null,0,null,null,null,null,null,null,null,null,null,null,"Culex quinqefasciatus HAmCq strain",null,null,"Embryo 1-2 hpf; 8-64 cell stage",null,null,"48 hrs",null,null,null,null,null,"growth: length",null,null,null,null,null,null,null,null,null,null,null,"minimal medium",null,null,23,null,null,null,null,null,"8.32-8.61"]
[null,null,null,null,null,null,null,null,null,null,null,null,null,null,"Culex quinqefasciatus S-Lab strain",null,null,"embryo to juvenile",null,null,"48hr",null,null,null,null,null,"hatchability",null,null,null,null,null,null,null,null,null,null,null,"moderate hard synthetic water",null,null,23,null,null,null,null,null,"8.32-8.61"]
[null,7,"Were test acceptability criteria stated (e.g. mortality in controls must not exceed a certain percentage) (5 marks)?\nOR Were test acceptability criteria inferred (e.g. test method used [USEPA, OECD, ASTM etc.]) (award 2 marks). \nNote: Data that fail the acceptability criteria are automatically deemed to be of unacceptable quality and must not be used. ",5,null,1,{"$f":"IF(F29=0,0,INDEX($D29:$D31,F29,1))","v":5},"USEPA Guideline 72-4 (Superceded by USEPA (1996) OPPTS 850.1300)",null,null,null,null,null,null,"Culex quinqefasciatus VBFmCq strain",null,null,"embryop",null,null,"5 day",null,null,null,null,null,"hatching time",null,null,null,null,null,null,null,null,null,null,null,"moderately hard reconstituted water",null,null,24,null,null,null,null,null,"N.A."]
[null,null,null,2,null,null,null,null,null,null,null,null,null,null,"Culex quinquefasciatus MAmCq strain",null,null,"fry",null,null,"5 months",null,null,null,null,null,"Immobilisation",null,null,null,null,null,null,null,null,null,null,null,"Moderately hard water",null,null,25,null,null,null,null,null,"N/A"]
[null,null,null,0,null,null,null,null,null,null,null,null,null,null,"Cyprinus carpio",null,null,"glochidia",null,null,"6 days",null,null,null,null,null,"lymphocyte count",null,null,null,null,null,null,null,null,null,null,null,"moderately hard water",null,null,25,null,null,null,null,null,"N/A"]
[null,8,"Were the characteristics of the test organism (e.g. length, mass, age) stated?",5,null,2,{"$f":"IF(F32=0,0,INDEX($D32:$D34,F32,1))","v":0},"Based on guideline - neonates (< 24 hours old) should be used for testing",null,null,null,null,null,null,"Danio rerio",null,null,"glochidia",null,null,"60 day",null,null,null,null,null,"Mass",null,null,null,null,null,null,null,null,null,null,null,"moderately hard water",null,null,25,null,null,null,null,null,"not stated"]
[null,null,null,0,null,null,null,null,null,null,null,null,null,null,"Daphnia magna",null,null,"Glochidia",null,null,"7 day",null,null,null,null,null,"Mobility",null,null,null,null,null,null,null,null,null,null,null,"moderately hard water",null,null,26,null,null,null,null,null,"Not stated"]
[null,null,null,null,null,null,null,null,null,null,null,null,null,null,"Daphnia pulex",null,null,"juvenile",null,null,"7 day",null,null,null,null,null,"mobility: swim speed",null,null,null,null,null,null,null,null,null,null,null,"N.A.",null,null,26,null,null,null,null,null,"Not stated"]
[null,9,"Was the type of test media used stated?",5,null,2,{"$f":"IF(F35=0,0,INDEX($D35:$D37,F35,1))","v":0},"Not stated but based on guidelines should be surface or groundwater, reconstituted or dechlorinated tap water",null,null,null,null,null,null,"Diaptomus castor",null,null,"juvenile",null,null,"7 day",null,null,null,null,null,"Mortality",null,null,null,null,null,null,null,null,null,null,null,"Not stated",null,null,27,null,null,null,null,null,"Not stated"]
[null,null,null,0,null,null,null,null,null,null,null,null,null,null,"Diphetor hageni",null,null,"juvenile",null,null,"7 days",null,null,null,null,null,"Mortality",null,null,null,null,null,null,null,null,null,null,null,"potato dextrose agar",null,null,28.50,null,null,null,null,null,"Not stated"]
[null,null,null,null,null,null,null,null,null,null,null,null,null,null,"Dreissena polymorpha",null,null,"juvenile",null,null,"7 days",null,null,null,null,null,"Mortality: disease susceptibility L. anguillarum",null,null,null,null,null,null,null,null,null,null,null,"reconstituted hard water",null,null,"2016-12-15",null,null,null,null,null,"Not stated"]
[null,null,"Was the type of exposure (e.g. static, flow through) stated? ",4,null,1,{"$f":"IF(F38=0,0,INDEX($D38:$D40,F38,1))","v":4},"Static renewal",null,null,null,null,null,null,"Elliptio complananta",null,null,"Juvenile",null,null,"7 dyas",null,null,null,null,null,"N.A.",null,null,null,null,null,null,null,null,null,null,null,"reconstituted hard water",null,null,"12 to 15",null,null,null,null,null,"PH11"]
[null,10,null,0,null,null,null,null,null,null,null,null,null,null,"Elliptio complanata",null,null,"Juvenile",null,null,"7-14 days",null,null,null,null,null,"number of broods",null,null,null,null,null,null,null,null,null,null,null,"reconstituted water",null,null,"12.5-15.5",null,null,null,null,null,"PH7.0"]
[null,null,null,null,null,null,null,null,null,null,null,null,null,null,"Elliptio complanata",null,null,"Juvenile",null,null,"72 hrs",null,null,null,null,null,"number of broods",null,null,null,null,null,null,null,null,null,null,null,"reoncstituted water",null,null,"12.6±0.03",null,null,null,null,null,"7.7-7.9"]
[null,null,"Were the contaminant concentrations measured at the beginning and end of the exposure (4 marks)? Award 2 marks if they were measured only once during the test.\nNote: If the concentrations were not measured then automatically the data cannot be high quality. ",4,null,3,{"$f":"IF(F41=0,0,INDEX($D41:$D43,F41,1))","v":0},"Not stated",null,null,null,null,null,null,"Ephemeralla excrucians",null,null,"larvae",null,null,"7-8 days",null,null,null,null,null,"number of broods",null,null,null,null,null,null,null,null,null,null,null,"Seawater",null,null,"15°C",null,null,null,null,null,"8.0-8.1"]
[null,11,null,2,null,null,null,null,null,null,null,null,null,null,"Eucypris virens",null,null,"larvae",null,null,"8 days",null,null,null,null,null,"Nutrient assimilation",null,null,null,null,null,null,null,null,null,null,null,"standard reference water",null,null,"18-22",null,null,null,null,null,"7.1-7.3"]
[null,null,null,0,null,null,null,null,null,null,null,null,null,null,"Fallceon quilleri",null,null,"Larvae (96 hours post fertilisation)",null,null,"8 days",null,null,null,null,null,"phagocytic cell count",null,null,null,null,null,null,null,null,null,null,null,"system water",null,null,"19.6-23.1",null,null,null,null,null,7.20]
[null,null,"Were parallel reference toxicant toxicity tests conducted?",4,null,2,{"$f":"IF(F44=0,0,INDEX($D44:$D46,F44,1))","v":0},"Not stated",null,null,null,null,null,null,"Fusarium sporotrichioides",null,null,"Larval",null,null,"96 hour",null,null,null,null,null,"Reproduction",null,null,null,null,null,null,null,null,null,null,null,"tannic acid aqueous solution",null,null,"20 ± 1 ",null,null,null,null,null,"6.5-8.0"]
[null,12,null,0,null,null,null,null,null,null,null,null,null,null,"Galaxias auratus",null,null,"larval (7-d post hatch)",null,null,"96 hrs",null,null,null,null,null,"reproduction impairment",null,null,null,null,null,null,null,null,null,null,null,"Tap water",null,null,"20 ± 2",null,null,null,null,null,"NA"]
[null,null,null,null,null,null,null,null,null,null,null,null,null,null,"Galaxias maculatus",null,null,"lochidia",null,null,"96hr",null,null,null,null,null,"respiratory burst",null,null,null,null,null,null,null,null,null,null,null,"Tap water",null,null,"20.1-21.9",null,null,null,null,null,"7.0-7.4"]
[null,null,"Was there a concentration–response relationship either observable or stated?",4,null,2,{"$f":"IF(F47=0,0,INDEX($D47:$D49,F47,1))","v":0},"Not stated",null,null,null,null,null,null,"Galaxias maculatus",null,null,"N.A.",null,null,"N.A.",null,null,null,null,null,"Secondary sexual characteristics",null,null,null,null,null,null,null,null,null,null,null,"Tap water",null,null,"20.1-21.9",null,null,null,null,null,"7.12 - 8.64"]
[null,13,null,0,null,null,null,null,null,null,null,null,null,null,"Galaxias truttaceus ",null,null,"Neonate",null,null,"NOEL",null,null,null,null,null,"serum lysozyme activity",null,null,null,null,null,null,null,null,null,null,null,"tap water",null,null,"20.2 ± 0.1",null,null,null,null,null,"7.8-7.98"]
[null,null,null,null,null,null,null,null,null,null,null,null,null,null,"Glyptotendipes paripes",null,null,"neonate",null,null,"Not stated (test went until 120 hours post fertilisation)",null,null,null,null,null,"sex ratio",null,null,null,null,null,null,null,null,null,null,null,"unfiltered river water",null,null,"20-22"]
[null,null,"Was an appropriate statistical method or model used to determine the toxicity?\nNote: They should be accepted by a recognised national or international regulatory body (e.g. USEPA, OECD, ASTM). ",4,null,1,{"$f":"IF(F50=0,0,INDEX($D50:$D52,F50,1))","v":4},"Based on guideline - appropriate statistical analysis ie ANOVA, mean separation test should be conducted to test for significant effects",null,null,null,null,null,null,"Helicopsyche sp. ",null,null,"neonate fed",null,null,"192 hrs (8 days)",null,null,null,null,null,"Survival",null,null,null,null,null,null,null,null,null,null,null,"NA",null,null,"21-24"]
[null,14,null,0,null,null,null,null,null,null,null,null,null,null,"Hexagenia sp.",null,null,"neonate unfed",null,null,"30 days",null,null,null,null,null,"Swim ability",null,null,null,null,null,null,null,null,null,null,null,"Aquarium water",null,null,"22.0-22.4"]
[null,null,null,null,null,null,null,null,null,null,null,null,null,null,"Hyalella azteca",null,null,"Not stated",null,null,"28 days",null,null,null,null,null,"time taken to release brood",null,null,null,null,null,null,null,null,null,null,null,"Well water",null,null,"22-23"]
[null,15,"For LC/EC/BEC data was an estimate of variability provided? \nOR \nFor NO EC/LOEC data was the significance level 0.05 or less?  \n\n",4,null,2,{"$f":"IF(F53=0,0,INDEX($D53:$D55,F53,1))","v":0},"Not stated",null,null,null,null,null,null,"Hydropsyche sp. ",null,null,"Not stated",null,null,"21 days",null,null,null,null,null,"time until brood release",null,null,null,null,null,null,null,null,null,null,null,"FETAX solution",null,null,"22-24"]
[null,null,null,0,null,null,null,null,null,null,null,null,null,null,"Hyla cinerea",null,null,"Not stated",null,null,null,null,null,null,null,null,"viability",null,null,null,null,null,null,null,null,null,null,null,"Filtered tap water",null,null,"23 ± 0.3"]
[null,null,null,null,null,null,null,null,null,null,null,null,null,null,"Hyla squirella",null,null,"Not stated",null,null,null,null,null,null,null,null,"viability",null,null,null,null,null,null,null,null,null,null,null,"Aerated tap water",null,null,"23.1 ± 0.3"]
[null,16,"Were the following parameters measured and stated? (3 marks if measured and stated, 1 mark if just measured).",null,null,null,null,null,null,null,null,null,null,null,"Ictalurus punctatus",null,null,"tadpole",null,null,null,null,null,null,null,null,"viability",null,null,null,null,null,null,null,null,null,null,null,"Water",null,null,"23.2 ± 0.4°C"]
[null,null,null,3,null,3,{"$f":"IF(F57=0,0,INDEX($D57:$D59,F57,1))","v":0},null,null,null,null,null,null,null,"Isoperla quinquepunctata",null,null,"tadpole",null,null,null,null,null,null,null,null,"Viability: ability to attach to host",null,null,null,null,null,null,null,null,null,null,null,"Dechlorinated water",null,null,"23-25"]
[null,16.10,"pH",1,null,null,null,null,null,null,null,null,null,null,"Lampsilis fasciola",null,null,"Larvae",null,null,null,null,null,null,null,null,"Viability: ability to attach to host",null,null,null,null,null,null,null,null,null,null,null,"Dechlorinated tap water",null,null,"24-26"]
[null,null,null,0,null,null,null,null,null,null,null,null,null,null,"Lampsilis siliquoidea",null,null,"Embryo",null,null,null,null,null,null,null,null,null,null,null,null,null,null,null,null,null,null,null,null,"Tap water",null,null,"24-26"]
[null,null,null,3,null,1,{"$f":"IF(F60=0,0,INDEX($D60:$D62,F60,1))","v":3},"Based on guideline should be between 60 and 105 % saturation",null,null,null,null,null,null,"Lampsilis siliquoidea",null,null,"Embryo",null,null,null,null,null,null,null,null,null,null,null,null,null,null,null,null,null,null,null,null,"NA",null,null,"25 ± 1"]
[null,16.20,"Dissolved Oxygen",1,null,null,null,null,null,null,null,null,null,null,"Mucor hiemalis",null,null,"Embryo",null,null,null,null,null,null,null,null,null,null,null,null,null,null,null,null,null,null,null,null,null,null,null,"25.8–28.2"]
[null,null,null,0,null,null,null,null,null,null,null,null,null,null,"N.A.",null,null,"Embryo",null,null,null,null,null,null,null,null,null,null,null,null,null,null,null,null,null,null,null,null,null,null,null,"25±1"]
[null,null,"Was the temperature measured and stated (3 marks)? Award 1 mark if the temperature was measured but not stated or if only the temperature settings of the room or chamber are stated.",3,null,1,{"$f":"IF(F63=0,0,INDEX(D63:D65,F63,1))","v":3},"Based on guideline should be 19-21oC",null,null,null,null,null,null,"Nectopsyche sp.",null,null,"Fingerlings",null,null,null,null,null,null,null,null,null,null,null,null,null,null,null,null,null,null,null,null,null,null,null,"25°C"]
[null,17,null,1,null,null,null,null,null,null,null,null,null,null,"Neoniphargus sp.",null,null,"Hatchlings",null,null,null,null,null,null,null,null,null,null,null,null,null,null,null,null,null,null,null,null,null,null,null,"26 ± 2"]
[null,null,null,0,null,null,null,null,null,null,null,null,null,null,"Oncorhynchus mykiss",null,null,null,null,null,null,null,null,null,null,null,null,null,null,null,null,null,null,null,null,null,null,null,null,null,null,"28 + 3"]
[null,null,"Were test solutions, blanks and/or controls tested for contamination OR were analytical reagent grade chemicals used or the highest possible purity chemicals used for the experiment? (3 marks).",3,null,1,{"$f":"IF(F66=0,0,INDEX($D66:$D67,F66,1))","v":3},"99.7% purity",null,null,null,null,null,null,"Oryzias latipes",null,null,null,null,null,null,null,null,null,null,null,null,null,null,null,null,null,null,null,null,null,null,null,null,null,null,"28 ± 1"]
[null,18,null,0,null,null,null,null,null,null,null,null,null,null,"Osteopilus septentrionalis",null,null,null,null,null,null,null,null,null,null,null,null,null,null,null,null,null,null,null,null,null,null,null,null,null,null,"28-30"]
[null,null,null,null,null,null,null,null,null,null,null,null,null,null,"Pacifastacus leniusculus",null,null,null,null,null,null,null,null,null,null,null,null,null,null,null,null,null,null,null,null,null,null,null,null,null,null,"N.A."]
[null,null,null,null,null,null,null,null,{"$f":"(COUNTIF(F12:F67,\"=0\"))+COUNTIF(F2:F10,\"=0\")+COUNTIF(D2:D7,\"=0\")","v":0},null,null,null,null,null,"Palaemonetes pugio",null,null,null,null,null,null,null,null,null,null,null,null,null,null,null,null,null,null,null,null,null,null,null,null,null,null,"N/A"]
[null,null,null,null,null,null,null,null,null,null,null,null,null,null,"Parutya austruliensis",null,null,null,null,null,null,null,null,null,null,null,null,null,null,null,null,null,null,null,null,null,null,null,null,null,null,"Not stated"]
[null,null,null,null,null,null,null,null,null,null,null,null,null,null,"Philodina acuticornis odiosa",null,null,null,null,null,null,null,null,null,null,null,null,null,null,null,null,null,null,null,null,null,null,null,null,null,null,"22.6-24.2oC"]
[null,null,"Total score",null,null,null,{"$f":"IF(SUM(G12:G66)=0,\"\",SUM(G12:G66))","v":62},null,null,null,null,null,null,null,"Pimephales promelas",null,null,null,null,null,null,null,null,null,null,null,null,null,null,null,null,null,null,null,null,null,null,null,null,null,null,"23-25oC"]
[null,null,"Total Max. possible score for the various types of data and contaminants ",null,{"$f":"D12+D15+D18+D21+D23+D26+D29+D32+D35+D38+D41+D44+D47+D50+D53+D57+D60+D63+D66","v":91},null,null,null,null,null,null,null,null,null,"Polypedilum nubiferum",null,null,null,null,null,null,null,null,null,null,null,null,null,null,null,null,null,null,null,null,null,null,null,null,null,null,"22-24oC"]
[null,null,"Quality Score",null,{"$f":"\"= [Total score / Total possible score] * 100 = \"","v":"= [Total score / Total possible score] * 100 = "},null,{"$f":"IF(ISERROR(G72/E73),#N/A,G72/E73)","v":0.68131868131868134},{"$f":"IF(F41=3,\"The highest possible grade for this datum is acceptable.\",\"\")","v":"The highest possible grade for this datum is acceptable."},null,null,null,null,null,null,"Procambarus clarkii",null,null,null,null,null,null,null,null,null,null,null,null,null,null,null,null,null,null,null,null,null,null,null,null,null,null,"20-25oC"]
[null,null,null,null,null,null,null,null,null,null,null,null,null,null,"Procambarus zonangulus",null,null,null,null,null,null,null,null,null,null,null,null,null,null,null,null,null,null,null,null,null,null,null,null,null,null,"15oC"]
[null,null,"H = high quality                           Quality score ≥ 80%      ",null,null,null,null,null,null,null,null,null,null,null,"Pseudaphritis urvillir",null,null,null,null,null,null,null,null,null,null,null,null,null,null,null,null,null,null,null,null,null,null,null,null,null,null,"24-30oC"]
[null,null,"A = acceptable quality         > 50% Quality score < 80%        ",null,null,null,null,null,null,null,null,null,null,null,"Pythium spp",null,null,null,null,null,null,null,null,null,null,null,null,null,null,null,null,null,null,null,null,null,null,null,null,null,null,"NA"]
[null,null,"U = unacceptable quality              Quality score ≤ 50%  ",null,null,null,null,null,null,null,null,null,null,null,"Rana sphenocephala",null,null,null,null,null,null,null,null,null,null,null,null,null,null,null,null,null,null,null,null,null,null,null,null,null,null,"18.45 - 21.45oC"]
[null,null,null,null,null,null,null,null,null,null,null,null,null,null,"Salmo gairdneri"]
[3,null,"Click the 'Save & Update' button to save and export the answers to the 'All results' worksheet. ",null,null,null,null,null,null,null,null,null,null,null,"Selenastrum capricornutum"]
[null,null,"Select the 'Reset Answers' button if you wish to clear all answers.",null,null,null,null,null,null,null,null,null,null,null,"Serratella micheneri"]
[null,null,null,null,null,null,null,null,null,null,null,null,null,null,"Simocephalus elizabethae"]
[null,null,null,null,null,null,null,null,null,null,null,null,null,null,"Simulium vittatum"]
[null,null,null,null,null,null,null,null,null,null,null,null,null,null,"Simulium vittatum IS-7"]
[null,null,null,null,null,null,null,null,null,null,null,null,null,null,"Spea multiplicata"]
[null,null,null,null,null,null,null,null,null,null,null,null,null,null,"Taenionema sp."]
[null,null,null,null,null,null,null,null,null,null,null,null,null,null,"Trichoderma hamatum"]
[null,null,null,null,null,null,null,null,null,null,null,null,null,null,"Tricorythodes sp. "]
[null,null,null,null,null,null,null,null,null,null,null,null,null,null,"Unio elongatulus"]
[null,null,null,null,null,null,null,null,null,null,null,null,null,null,"Urotricha furcata"]
[null,null,null,null,null,null,null,null,null,null,null,null,null,null,"Villosa constricta"]
[null,null,null,null,null,null,null,null,null,null,null,null,null,null,"Villosa delumbis"]
[null,null,null,null,null,null,null,null,null,null,null,null,null,null,"Xenopus laevis"]
[null,null,null,null,null,null,null,null,null,null,null,null,null,null,"Paratya australiensis"]
[null,null,null,null,null,null,null,null,null,null,null,null,null,null,"Oreochromis niloticus L."]
[null,null,null,null,null,null,null,null,null,null,null,null,null,null,"Poecilia reticulata"]
[null,null,null,null,null,null,null,null,null,null,null,null,null,null,"Puntius gonionotus"]
[null,null,null,null,null,null,null,null,null,null,null,null,null,null,"Gammarus pulex"]
[null,null,null,null,null,null,null,null,null,null,null,null,null,null,"Lymnaea acuminata"]
[null,null,null,null,null,null,null,null,null,null,null,null,null,null,"Culex tritaeniorhynchus"]
[null,null,null,null,null,null,null,null,null,null,null,null,null,null,"Rutilus rutilus caspicus"]
[null,null,null,null,null,null,null,null,null,null,null,null,null,null,"Hypophthalmicthys molitrix"]
[null,null,null,null,null,null,null,null,null,null,null,null,null,null,"Anopheles sinensis"]
[null,null,null,null,null,null,null,null,null,null,null,null,null,null,"Huso huso"]

{"sheet":"FW nonmetal nonplant_WS","index":6,"n_rows":111,"n_cols":24,"rows_kept":111,"cut":false,"hidden":false,"merged":[]}
[]
["Question No.",1,2,3,4,5,6,7,8,9,10,11,12,13,14,15,16.10,16.60,17,18,"Total Score","Quality Score",null,"Comment "]
["Short Questions","Duration of the exposure ","Biological endpoint","Biological effect stated or not","Biological effect quantified or not","Appropriate controls","Control & contaminant concentration","Test acceptability criteria","Characteristics of the test organism"," Type of test media","Type of exposure","Contaminant concentrations","Parallel reference toxicant toxicity tests","Concentration–response relationship","Determine the toxicity","NOEC/LOEC or LC/EC/BEC","pH","Dissolved oxygen","Temperature","Grade or purity"]
["Category","Freshwater/non-metal/non- plant","Paper and data unique identifier(eg. 1-1,10-150)","695-1"]
["Scores",10,10,5,5,5,5,5,0,0,4,0,0,0,4,0,3,3,3,3,{"$f":"SUM(B5:T5)","v":65},{"$f":"U5/91","v":0.7142857142857143},null,""]
["Answers","96 hours","LC50. Mortality defined as lack of movement or response to gentle prodding","LC50","LC50","Control and solvent control","Three replicates (triplicate)","Tests were considered valid if mortality in each of the water and solvent controls was not less than 10% and the DO level in all the test solutions > 60% saturation","Field collected organisms acclimated for at least 2 weeks prior to testing ","Not stated","Static renewal - every 24 hours","Not measured","Not stated ","Not stated or observed","Spearman Karber method","Not stated","7.7-7.9","> 80% saturation","23 +/- 0.8oC",">97% purity "]
["Category","Freshwater/non-metal/non- plant","Paper and data unique identifier(eg. 1-1,10-150)","696-1"]
["Scores",10,10,5,5,5,5,5,5,5,4,0,4,4,4,4,3,3,3,3,{"$f":"SUM(B8:T8)","v":87},{"$f":"U8/91","v":0.95604395604395609},null,""]
["Answers","48 hours","LC50. - Immobilization defined as the failure to move within 15 s of the beaker being gently swirled","LC50","LC50","Water control, acetone control (negative control) and copper sulphate (positive control)","Four replicates per treatment","Mortality in the controls (water and solvent controls) was < 10% and the reference toxiccant LC50 was within the normal range","Newborn (neonates)","Moderately hard water","Static renewal - every 24 hours","Not measured","Copper sulphate","Stated and in Figure 1","Trimmed Spearman Karber method","95% CI","8.0-8.1","5.5-5.9 mg/L","23-25 oC","Purchased from Sigma Aldrich (assume technical grade)"]
["Category","Freshwater/non-metal/non- plant","Paper and data unique identifier(eg. 1-1,10-150)","696-2"]
["Scores",10,10,5,5,5,5,5,5,5,4,0,4,4,4,4,3,3,3,3,{"$f":"SUM(B11:T11)","v":87},{"$f":"U11/91","v":0.95604395604395609},null,""]
["Answers","192 hours (8 days)","NOEC. Immobilization defined as the failure to move within 15 s of the beaker being gently swirled","NOEC","NOEC","Water control, acetone control (negative control) and copper sulphate (positive control)","Ten replicates per treatment","Mortality in the controls (water and solvent controls) was < 10% ","Newborn (neonates)","Moderately hard water","Static renewal - every 24 hours","Not measured","Copper sulphate","Table 3","ANOVA and Tukey test","p<0.05","8.0-8.1","5.5-5.9 mg/L","23-25 oC","Purchased from Sigma Aldrich (assume technical grade)"]
["Category","Freshwater/non-metal/non- plant","Paper and data unique identifier(eg. 1-1,10-150)","696-3"]
["Scores",10,10,5,5,5,5,5,5,5,4,0,4,4,4,4,3,3,3,3,{"$f":"SUM(B14:T14)","v":87},{"$f":"U14/91","v":0.95604395604395609},null,""]
["Answers","192 hours (8 days)","LOEC. Immobilization defined as the failure to move within 15 s of the beaker being gently swirled","LOEC","LOEC","Water control, acetone control (negative control) and copper sulphate (positive control)","Ten replicates per treatment","Mortality in the controls (water and solvent controls) was < 10% ","Newborn (neonates)","Moderately hard water","Static renewal - every 24 hours","Not measured","Copper sulphate","Table 3","ANOVA and Tukey test","p<0.05","8.0-8.1","5.5-5.9 mg/L","23-25 oC","Purchased from Sigma Aldrich (assume technical grade)"]
["Category","Freshwater/non-metal/non- plant","Paper and data unique identifier(eg. 1-1,10-150)","696-4"]
["Scores",10,10,5,5,5,5,5,5,5,4,0,4,4,4,4,3,3,3,3,{"$f":"SUM(B17:T17)","v":87},{"$f":"U17/91","v":0.95604395604395609},null,""]
["Answers","192 hours (8 days)","NOEC. Reproduction - # neonates per female","NOEC","NOEC","Water control, acetone control (negative control) and copper sulphate (positive control)","Ten replicates per treatment","Mortality in the controls (water and solvent controls) was < 10% ","Newborn (neonates)","Moderately hard water","Static renewal - every 24 hours","Not measured","Copper sulphate","Table 3","ANOVA and Tukey test","p<0.05","8.0-8.1","5.5-5.9 mg/L","23-25 oC","Purchased from Sigma Aldrich (assume technical grade)"]
["Category","Freshwater/non-metal/non- plant","Paper and data unique identifier(eg. 1-1,10-150)","696-5"]
["Scores",10,10,5,5,5,5,5,5,5,4,0,4,4,4,4,3,3,3,3,{"$f":"SUM(B20:T20)","v":87},{"$f":"U20/91","v":0.95604395604395609},null,""]
["Answers","192 hours (8 days)","LOEC. Reproduction - # neonates per female","LOEC","LOEC","Water control, acetone control (negative control) and copper sulphate (positive control)","Ten replicates per treatment","Mortality in the controls (water and solvent controls) was < 10% ","Newborn (neonates)","Moderately hard water","Static renewal - every 24 hours","Not measured","Copper sulphate","Table 3","ANOVA and Tukey test","p<0.05","8.0-8.1","5.5-5.9 mg/L","23-25 oC","Purchased from Sigma Aldrich (assume technical grade)"]
["Category","Freshwater/non-metal/non- plant","Paper and data unique identifier(eg. 1-1,10-150)","696-6"]
["Scores",10,10,5,5,5,5,5,5,5,4,0,4,4,4,4,3,3,3,3,{"$f":"SUM(B23:T23)","v":87},{"$f":"U23/91","v":0.95604395604395609},null,""]
["Answers","192 hours (8 days)","NOEC. Growth - length","NOEC","NOEC","Water control, acetone control (negative control) and copper sulphate (positive control)","Ten replicates per treatment","Mortality in the controls (water and solvent controls) was < 10% ","Newborn (neonates)","Moderately hard water","Static renewal - every 24 hours","Not measured","Copper sulphate","Table 3","ANOVA and Tukey test","p<0.05","8.0-8.1","5.5-5.9 mg/L","23-25 oC","Purchased from Sigma Aldrich (assume technical grade)"]
["Category","Freshwater/non-metal/non- plant","Paper and data unique identifier(eg. 1-1,10-150)","696-7"]
["Scores",10,10,5,5,5,5,5,5,5,4,0,4,4,4,4,3,3,3,3,{"$f":"SUM(B26:T26)","v":87},{"$f":"U26/91","v":0.95604395604395609},null,""]
["Answers","192 hours (8 days)","LOEC. Growth - length","LOEC","LOEC","Water control, acetone control (negative control) and copper sulphate (positive control)","Ten replicates per treatment","Mortality in the controls (water and solvent controls) was < 10% ","Newborn (neonates)","Moderately hard water","Static renewal - every 24 hours","Not measured","Copper sulphate","Table 3","ANOVA and Tukey test","p<0.05","8.0-8.1","5.5-5.9 mg/L","23-25 oC","Purchased from Sigma Aldrich (assume technical grade)"]
["Category","Freshwater/non-metal/non- plant","Paper and data unique identifier(eg. 1-1,10-150)","698-1"]
["Scores",10,5,5,5,5,5,2,5,5,4,0,0,4,4,4,3,3,3,3,75,0.82417582417582413,null,"The highest possible grade for this datum is acceptable."]
["Answers","96 hours","Mortality","LC50","LC50","Acetone control","All determinations were repeated three times","Standard methods used - APHA AWWA WEF and OECD. No mortality observed in the control groups","Larvae (3-4 days old, average weight 0.054 +/-0.001 g and average length 0.79 +/- 0.03 cm)","Aquarium water - water quality parameters stated for pH, DO, temperature and conductivity","Static test method","Not stated","Not stated","Table 1","USEPA computer program for calculating LC50 and 95% CI","95% CI","7.1-7.3","7.1-8.1 mg/L","22-24oC","98% purity"]
["Category","Freshwater/non-metal/non- plant","Paper and data unique identifier(eg. 1-1,10-150)","701-1"]
["Scores",10,5,5,5,5,0,2,5,5,4,0,0,4,4,4,3,3,3,3,70,0.76923076923076927,null,"The highest possible grade for this datum is acceptable."]
["Answers","96 hours","Mortality","LC50","LC50","Acetone control","Not stated.","Standard methods used - APHA AWWA WEF and OECD","Adults","Well water - water quality parameters stated for pH, DO and temperature","Static test method","Not stated","Not stated","Table 1","USEPA computer program for calculating LC50 and 95% CI","95% CI",7.20,"7.5 mg/L","20-25oC","98% pur+H66:H78ity"]
["Category","Freshwater/non-metal/non- plant","Paper and data unique identifier(eg. 1-1,10-150)","754-1"]
["Scores",10,5,5,5,5,5,2,5,5,4,2,0,4,4,4,3,3,3,3,77,0.84615384615384615,null,""]
["Answers","96 hours","Mortality","LC50","LC50","FETAX control","Five replicates","FETAX protocol with a few modifications","Non de-jellied embroys, Nieuwkoop and Faber states 8-11","FETAX solution","Static renewal - every 24 hours","Gas chromatography","Not stated","Table 1","Logistic model","95% CI","6.5-8.0","5.07-8.59 mg/L","22-24oC","99.5% purity"]
["Category","Freshwater/non-metal/non- plant","Paper and data unique identifier(eg. 1-1,10-150)","754-2"]
["Scores",10,5,5,5,5,5,2,5,5,4,2,0,4,4,4,3,3,3,3,77,0.84615384615384615,null,""]
["Answers","96 hours","Mortality","LC50","LC50","FETAX control","Five replicates","FETAX protocol with a few modifications","Juveniles - Nieuwkoop and Faber Stage 46","FETAX solution","Static renewal - every 24 hours","Gas chromatography","Not stated","Table 1","Logistic model","95% CI","6.5-8.0","5.07-8.59 mg/L","22-24oC","99.5% purity"]
["Category","Freshwater/non-metal/non- plant","Paper and data unique identifier(eg. 1-1,10-150)","754-3"]
["Scores",10,5,0,0,5,5,2,5,5,4,2,0,4,4,4,3,3,3,3,67,0.73626373626373631,null,""]
["Answers","96 hours","Growth","NOEC","NOEC","FETAX control","Five replicates","FETAX protocol with a few modifications","Non de-jellied embryos Nieuwkoop and Faber stages 8-11","FETAX solution","Static renewal - every 24 hours","Gas chromatography","Figure 3","Table 1","ANOVA and Dunnets","p < 0.05","6.5-8.0","5.07-8.59 mg/L","22-24oC","99.5% purity"]
["Category","Freshwater/non-metal/non- plant","Paper and data unique identifier(eg. 1-1,10-150)","700-1"]
["Scores",10,5,5,5,5,0,0,5,5,4,4,0,0,0,0,0,0,1,3,59,0.64835164835164838,null,""]
["Answers","96 hours","Survival","LC50","LC50","Filtered tap water","Not stated","Not stated or inferred","Weight - mean weight 3.3g","Filtered tap water","Static renewal - every 12 hours","Fresh media prior to addition and the old media prior to renewal were tested by glc-ecd; concentrations in fresh media were within 80% of nominal and fell by approximately 25% during the 12 hours between renewals. ","Not stated","Not stated","Not stated","Not stated","Not stated","Not stated","15oC (assume room or chamber)","Technical "]
["Category","Freshwater/non-metal/non- plant","Paper and data unique identifier(eg. 1-1,10-150)","700-2"]
["Scores",10,5,5,5,5,0,0,5,5,4,4,0,0,0,0,0,0,1,3,59,0.64835164835164838,null,""]
["Answers","96 hours","Survival","LC50","LC50","Filtered tap water","Not stated","Not stated or inferred","Weight - mean weight 3.3g","Filtered tap water","Static renewal - every 12 hours","Fresh media prior to addition and the old media prior to renewal were tested by glc-ecd; concentrations in fresh media were within 80% of nominal and fell by approximately 25% during the 12 hours between renewals. ","Not stated","Not stated","Not stated","Not stated","Not stated","Not stated","15oC (assume room or chamber)","Emulsifiable concentrate"]
["Category","Freshwater/non-metal/non- plant","Paper and data unique identifier(eg. 1-1,10-150)","700-3"]
["Scores",10,5,5,5,5,0,0,5,5,4,4,0,0,0,0,0,0,1,3,59,0.64835164835164838,null,""]
["Answers","96 hours","Survival","LC50","LC50","Filtered tap water","Not stated","Not stated or inferred","Weight - mean weight 3.3g","Filtered tap water","Static renewal - every 12 hours","Fresh media prior to addition and the old media prior to renewal were tested by glc-ecd; concentrations in fresh media were within 80% of nominal and fell by approximately 25% during the 12 hours between renewals. ","Not stated","Not stated","Not stated","Not stated","Not stated","Not stated","15oC (assume room or chamber)","Suspension concentrate"]
["Category","Freshwater/non-metal/non- plant","Paper and data unique identifier(eg. 1-1,10-150)","700-4"]
["Scores",10,5,5,5,5,0,0,5,5,4,0,0,0,0,0,0,0,1,3,55,0.60439560439560436,null,"The highest possible grade for this datum is acceptable."]
["Answers","96 hours","Survival","LC50","LC50","Aerated tap water","Not stated","Not stated or inferred","Weight - mean weight 3.5-4.0g","Aerated tap water","Static renewal - every 24 hours","Not stated","Not stated","Not stated","Not stated","Not stated","Not stated","Not stated","24-30oC (assume room or chamber)","Emulsifiable concentrate"]
["Category","Freshwater/non-metal/non- plant","Paper and data unique identifier(eg. 1-1,10-150)","700-5"]
["Scores",10,5,5,5,5,0,0,5,5,4,0,0,0,0,0,0,0,1,3,55,0.60439560439560436,null,"The highest possible grade for this datum is acceptable."]
["Answers","96 hours","Survival","LC50","LC50","Aerated tap water","Not stated","Not stated or inferred","Weight - mean weight 3.5-4.0g","Aerated tap water","Static renewal - every 24 hours","Not stated","Not stated","Not stated","Not stated","Not stated","Not stated","Not stated","24-30oC (assume room or chamber)","Suspension concentrate"]
["Category","Freshwater/non-metal/non- plant","Paper and data unique identifier(eg. 1-1,10-150)","700-6"]
["Scores",10,5,5,5,5,0,0,5,5,4,0,0,0,0,0,0,0,1,3,55,0.60439560439560436,null,"The highest possible grade for this datum is acceptable."]
["Answers","96 hours","Survival","LC50","LC50","Aerated tap water","Not stated","Not stated or inferred","Weight - mean weight 0.3-0.5g","Aerated tap water","Static renewal - every 24 hours","Not stated","Not stated","Not stated","Not stated","Not stated","Not stated","Not stated","24-30oC (assume room or chamber)","Emulsifiable concentrate"]
["Category","Freshwater/non-metal/non- plant","Paper and data unique identifier(eg. 1-1,10-150)","700-7"]
["Scores",10,5,5,5,5,0,0,5,5,4,0,0,0,0,0,0,0,1,3,55,0.60439560439560436,null,"The highest possible grade for this datum is acceptable."]
["Answers","96 hours","Survival","LC50","LC50","Aerated tap water","Not stated","Not stated or inferred","Weight - mean weight 0.3-0.5g","Aerated tap water","Static renewal - every 24 hours","Not stated","Not stated","Not stated","Not stated","Not stated","Not stated","Not stated","24-30oC (assume room or chamber)","Suspension concentrate"]
["Category","Freshwater/non-metal/non- plant","Paper and data unique identifier(eg. 1-1,10-150)","752-1"]
["Scores",10,10,5,5,5,5,0,5,0,0,0,0,4,4,4,0,0,0,3,60,0.65934065934065933,null,"The highest possible grade for this datum is acceptable."]
["Answers","48 hours","Survival - lethal concentration that affect 50% of the test organisms","LC50","LC50","Water plus acetone. Acetone not exceeding 0.01 ml/l","Five replicates","Not stated or inferred","Neonates < 24 hours old","Water - not described","Not stated","Not stated","Not stated","Figure 1","Not stated","Standard deviation and CV presented","Not stated","Not stated","Not stated","Fastac (trade name of alpha-cypermethrin) - active substance = 100 g/L "]
["Category","Freshwater/non-metal/non- plant","Paper and data unique identifier(eg. 1-1,10-150)","752-2"]
["Scores",10,10,5,5,5,5,0,0,0,0,0,0,4,4,4,0,0,0,3,55,0.60439560439560436,null,"The highest possible grade for this datum is acceptable."]
["Answers","24 hours","Survival - lethal concentration that affect 50% of the test organisms","LC50","LC50","Water plus acetone. Acetone not exceeding 0.01 ml/l","Five replicates","Not stated or inferred","Collected from field and age not specified","Water - not described","Not stated","Not stated","Not stated","Figure 2","Not stated","Standard deviation and CV presented","Not stated","Not stated","Not stated","Fastac (trade name of alpha-cypermethrin) - active substance = 100 g/L "]
["Category","Freshwater/non-metal/non- plant","Paper and data unique identifier(eg. 1-1,10-150)","753-1"]
["Scores",10,10,5,5,5,5,0,5,5,0,0,0,4,4,4,0,0,0,0,57,0.62637362637362637,null,"The highest possible grade for this datum is acceptable."]
["Answers","72 hours","Survival - dead embryos became white due to coagulation or precipitation of protein","LC50","LC50","Acetone control","Three replicates","Not stated or inferred","Embryos","Dechlorinated water","Not stated","Not stated","Not stated","Table 2 ","StatPlus computer software program to calculate LC50s with 95% CI","95% CI","Not stated","Not stated","Not stated","No purity information provided"]
["Category","Freshwater/non-metal/non- plant","Paper and data unique identifier(eg. 1-1,10-150)","753-2"]
["Scores",10,10,5,5,5,5,0,5,5,4,0,0,4,4,4,0,0,0,0,66,0.72527472527472525,null,"The highest possible grade for this datum is acceptable."]
["Answers","72 hours","Survival - fish are considered dead when gill movements have ceased and when there is no response to gentle prodding","LC50","LC50","Dechlorinated water control","Three replicates","Not stated or inferred","Fingerlings - 5 days old","Dechlorinated water","Static renewal - water changed every 24 hours","Not stated","Not stated","Table 3","StatPlus computer software program to calculate LC50s with 95% CI","95% CI","Not stated","Not stated","Not stated","No purity information provided"]
["Category","Freshwater/non-metal/non- plant","Paper and data unique identifier(eg. 1-1,10-150)","753-3"]
["Scores",10,10,5,5,5,5,0,5,5,4,0,0,4,4,4,0,0,0,0,66,0.72527472527472525,null,"The highest possible grade for this datum is acceptable."]
["Answers","96 hours","Survival - fish are considered dead when gill movements have ceased and when there is no response to gentle prodding","LC50","LC50","Dechlorinated water plus acetone","Two replicates","Not stated or inferred","Adults - similar age","Dechlorinated water","Static renewal - water changed every 24 hours","Not stated","Not stated","Table 1","StatPlus computer software program to calculate LC50s with 95% CI","95% CI","Not stated","Not stated","Not stated","No purity information provided"]
["Category","Freshwater/non-metal/non- plant","Paper and data unique identifier(eg. 1-1,10-150)","753-4"]
["Scores",10,10,0,0,5,5,0,5,5,4,0,0,4,4,4,0,0,0,0,56,0.61538461538461542,null,"The highest possible grade for this datum is acceptable."]
["Answers","30 days (1 month) exposure followed by placement in clean water for breading","Reproduction - average number of eggs laid per femaile and average number of fiable eggs","LOEC","LOEC","Dechlorinated water control","Two replicates","Not stated or inferred","Adults","Dechlorinated water","Static renewal - water changed every 24 hours","Not stated","Not stated","Table 3","StatPlus computer software program to calculate LC50s with 95% CI","95% CI","Not stated","Not stated","Not stated","No purity information provided"]
["Category","Freshwater/non-metal/non- plant","Paper and data unique identifier(eg. 1-1,10-150)","755-1"]
["Scores",10,5,0,0,5,5,0,5,5,4,0,0,4,4,4,3,3,3,0,60,0.65934065934065933,null,"The highest possible grade for this datum is acceptable."]
["Answers","28 days","Survival of hatchlings","LOEC","LOEC","Dechlorinated tap water control","Six replicates","Not stated or inferred","Hatchlings","Dechlorinated tap water","Static renewal","Not stated","Not stated","Table 1","StatPlus computer software program to calculate LC50s with 95% CI","95% CI","7.0-7.4","6.9-7.5 mg/L","22-24oC","No purity information provided"]
["Category","Freshwater/non-metal/non- plant","Paper and data unique identifier(eg. 1-1,10-150)","3100-1"]
["Scores",10,5,5,5,5,5,5,5,5,4,0,0,4,4,4,0,0,0,3,69,0.75824175824175821,null,"The highest possible grade for this datum is acceptable."]
["Answers","24 hours","Survival - Type A strain","LC50","LC50","1ml of absolute alcohol (solvent) to 249 ml dechlorinated water","Three replicates ","WHO methodology (1981) and control mortality < 20%","Early 4th instar larvae","Dechlorinated water","Static","Not stated","Not stated","Table 1","Probit regression analysis ","95% CI","","","","94/2% purity"]
["Category","Freshwater/non-metal/non- plant","Paper and data unique identifier(eg. 1-1,10-150)","3100-2"]
["Scores",10,5,5,5,5,5,5,5,5,4,0,0,4,4,4,0,0,0,3,69,0.75824175824175821,null,"The highest possible grade for this datum is acceptable."]
["Answers","24 hours","Survival - Type B strain","LC50","LC50","1ml of absolute alcohol (solvent) to 249 ml dechlorinated water","Three replicates ","WHO methodology (1981) and control mortality < 20%","Early 4th instar larvae","Dechlorinated water","Static","Not stated","Not stated","Table 1","Probit regression analysis ","95% CI","","","","94/2% purity"]
["Category","Freshwater/non-metal/non- plant","Paper and data unique identifier(eg. 1-1,10-150)","3101-1"]
["Scores",10,5,5,5,5,5,5,5,5,4,0,0,4,4,4,1,1,1,3,72,0.79120879120879117,null,"The highest possible grade for this datum is acceptable."]
["Answers","96 hours","Survival","LC50","LC50","Control group received acetone at the maximum actone volume used","Three replicates ","OECD (2002) guidelines","3.5 +/- 0.32 g and 7.3 +/- 0.65 cm","Dechlorinated tap water","Static-renewal","Not stated","Not stated","Table 2","Finneys Probit Analysis","95% CI","Water quality parameters were measured twice a week - pH, temperature, dissolved oxygen and water hardness. pH - 7.12-8.64","Water quality parameters were measured twice a week - pH, temperature, dissolved oxygen and water hardness. DO 7.66-8.36 mg/L","Water quality parameters were measured twice a week - pH, temperature, dissolved oxygen and water hardness. Temperature 18.45-21.45oC","95% purity"]
["Category","Freshwater/non-metal/non- plant","Paper and data unique identifier(eg. 1-1,10-150)","3101-2"]
["Scores",10,5,5,5,5,5,5,5,5,4,0,0,4,4,4,1,1,1,3,72,0.79120879120879117,null,"The highest possible grade for this datum is acceptable."]
["Answers","96 hours","Survival","LC50","LC50","Control group received acetone at the maximum actone volume used","Three replicates ","OECD (2002) guidelines","40.68 +/- 5.87 g and 15.34 +/- 3.12 cm","Dechlorinated tap water","Static-renewal","Not stated","Not stated","Table 2","Finneys Probit Analysis","95% CI","Water quality parameters were measured twice a week - pH, temperature, dissolved oxygen and water hardness. pH - 7.12-8.64","Water quality parameters were measured twice a week - pH, temperature, dissolved oxygen and water hardness. DO 7.66-8.36 mg/L","Water quality parameters were measured twice a week - pH, temperature, dissolved oxygen and water hardness. Temperature 18.45-21.45oC","95% purity"]
["Category","Freshwater/non-metal/non- plant","Paper and data unique identifier(eg. 1-1,10-150)","3102-1"]
["Scores",10,5,5,5,5,5,5,5,5,4,0,0,4,4,4,0,0,0,3,69,0.75824175824175821,null,"The highest possible grade for this datum is acceptable."]
["Answers","24 hours","Survival","LC50","LC50","Control groups treated with ethyl alcohol","Three replicates ","WHO (1981) guidelines","Third and fourth instar larvae","Triton-X","Static","Not stated","Not stated","Table 2","Abbots formula and probit analysis using SAS","95% CI","","","","97% purity"]
["Category","Freshwater/non-metal/non- plant","Paper and data unique identifier(eg. 1-1,10-150)","3103-1"]
["Scores",10,10,5,5,5,0,2,5,5,4,0,0,4,4,4,1,1,3,3,71,0.78021978021978022,null,"The highest possible grade for this datum is acceptable."]
["Answers","96 hours","Survival - fish were considered dead when gill opercula and body movement ceased","LC50","LC50","Control groups plus acetone at the maximum acetone volume","Not stated","OECD guideline","Juveniles 183.2 +/- 4.61 g and 36.31 +/- 1.27 cm","Tap water","Static renewal","Not stated","Not stated","Table 1","Probit Analysis","95% CI","7.89 +/- 0.9","7.8 +/- 0.5 mg/L","23 +/- 1oC","95% purity"]
["Category","Freshwater/non-metal/non- plant","Paper and data unique identifier(eg. 1-1,10-150)","3104-1"]
["Scores",10,5,5,0,5,5,2,5,0,4,0,0,0,4,4,0,1,1,3,54,0.59340659340659341,null,"The highest possible grade for this datum is acceptable."]
["Answers","21 days","Reproduction","NOEC","NOEC","Based on guideline - every test should include controls consisting of the same dilution water","Based on guideline - in static-renewal tests: 10 or more replicates of one daphnid each for each concentration should be used","USEPA Guideline 72-4","Based on guideline - neonates (< 24 hours old) should be used for testing","Not stated but based on guidelines should be surface or groundwater, reconstituted or dechlorinated tap water","Static renewal","Not stated","Not stated","Not stated","Based on guideline - appropriate statistical analysis ie ANOVA, mean separation test should be conducted to test for significant effects","Not stated","","Based on guideline should be between 60 and 105 % saturation","Based on guideline should be 19-21oC","99.7% purity"]
["Category","Freshwater/non-metal/non- plant","Paper and data unique identifier(eg. 1-1,10-150)","3104-2"]
["Scores",10,5,5,0,5,5,2,5,0,4,0,0,0,4,4,0,1,1,3,54,0.59340659340659341,null,"The highest possible grade for this datum is acceptable."]
["Answers","21 days","Reproduction","LOEC","LOEC","Based on guideline - every test should include controls consisting of the same dilution water","Based on guideline - in static-renewal tests: 10 or more replicates of one daphnid each for each concentration should be used","USEPA Guideline 72-4","Based on guideline - neonates (< 24 hours old) should be used for testing","Not stated but based on guidelines should be surface or groundwater, reconstituted or dechlorinated tap water","Static renewal","Not stated","Not stated","Not stated","Based on guideline - appropriate statistical analysis ie ANOVA, mean separation test should be conducted to test for significant effects","Not stated","","Based on guideline should be between 60 and 105 % saturation","Based on guideline should be 19-21oC","99.7% purity"]
["Category","Freshwater/non-metal/non- plant","Paper and data unique identifier(eg. 1-1,10-150)","3104-2"]
["Scores",10,5,5,0,5,5,2,5,0,4,0,0,0,4,4,0,1,1,3,54,0.59340659340659341,null,"The highest possible grade for this datum is acceptable."]
["Answers","21 days","Reproduction","LOEC","LOEC","Based on guideline - every test should include controls consisting of the same dilution water","Based on guideline - in static-renewal tests: 10 or more replicates of one daphnid each for each concentration should be used","USEPA Guideline 72-4 (Superceded by USEPA (1996) OPPTS 850.1300)","Based on guideline - neonates (< 24 hours old) should be used for testing","Not stated but based on guidelines should be surface or groundwater, reconstituted or dechlorinated tap water","Static renewal","Not stated","Not stated","Not stated","Based on guideline - appropriate statistical analysis ie ANOVA, mean separation test should be conducted to test for significant effects","Not stated","","Based on guideline should be between 60 and 105 % saturation","Based on guideline should be 19-21oC","99.7% purity"]

{"sheet":"FW metal plant_WS","index":7,"n_rows":14,"n_cols":25,"rows_kept":14,"cut":false,"hidden":false,"merged":[]}
[]
["Question No.",1,2,3,4,5,6,7,8,9,10,11,12,13,14,15,16.10,16.20,16.30,16.40,17,18,"Total Score","Quality Score"]
["Short Questions","Duration of the exposure ","Biological endpoint","Biological effect stated or not","Biological effect quantified or not","Appropriate controls","Control & contaminant concentration","Test acceptability criteria","Characteristics of the test organism"," Type of test media","Type of exposure","Contaminant concentrations","Parallel reference toxicant toxicity tests","Concentration–response relationship","Determine the toxicity","NOEC/LOEC or LC/EC/BEC","pH","Hardness","Alkalinity ","Organic carbon concentration","Temperature","Grade or purity"]
["Marks Awarded ","10 or 0","10,5 or 0","5 or 0 ","5 or 0 ","5 or 0 ","5 or 0 ","5 or 0 ","5 or 0 ","5 or 0 ","4 or 0","4 or 2 or 0","4 or 2","4 or 2","4 or 2","4 or 2","3 or 1 or 0","3 or 1 or 0","3 or 1 or 0","3 or 1 or 0","3 or 0","3 or 0 "]
["Max. Possible Score",10,10,5,5,5,5,5,5,5,4,4,4,4,4,4,3,3,3,3,3,3,{"$f":"SUM(B5:V5)","v":97}]
["Category","Freshwater/metal/plant","Paper and data unique identifier(eg. 1-1,10-150)","3105-1"]
["Scores",10,10,5,0,5,5,2,5,5,4,0,0,0,4,0,0,0,0,0,0,3,58,0.59793814432989689,"The highest possible grade for this datum is acceptable."]
["Answers","96 hrs","Based on guideline - endpoint is population growth (cell density). Based on yeild, growth rate and area under the growth curve","NOEC","NOEC","Based on guideline - appropriate controls required","Based on guideline - minimum of 4 replicates","USEPA Guideline 122-2 (superceded by USEPA (2012) OCSPP 850.4500)","Based on guideline - 10,000 cells/ml","Based on guideline - synthetic growth medium","Static","Not stated","Not stated","Not stated","Based on guideline - appropriate statistics required","Not stated","Not stated","Not stated","Not stated","Not stated","Not stated","99.2% purity "]
["Category","Freshwater/metal/plant","Paper and data unique identifier(eg. 1-1,10-150)","3107-1"]
["Scores",10,10,5,0,5,5,2,5,5,4,0,0,0,4,0,0,0,0,0,0,3,58,0.59793814432989689,"The highest possible grade for this datum is acceptable."]
["Answers","96 hrs","Based on guideline - endpoint is population growth (cell density). Based on yeild, growth rate and area under the growth curve","NOEC","NOEC","Based on guideline - appropriate controls required","Based on guideline - minimum of 4 replicates","USEPA Guideline 122-2 (superceded by USEPA (2012) OCSPP 850.4500)","Based on guideline - 10,000 cells/ml","Based on guideline - synthetic growth medium","Static","Not stated","Not stated","Not stated","Based on guideline - appropriate statistics required","Not stated","Not stated","Not stated","Not stated","Not stated","Not stated","99.2% purity "]
["Category","Freshwater/metal/plant","Paper and data unique identifier(eg. 1-1,10-150)","3106-1"]
["Scores",10,10,5,0,5,5,2,5,5,4,0,0,0,4,0,0,0,0,0,0,3,58,0.59793814432989689,"The highest possible grade for this datum is acceptable."]
["Answers","96 hrs","Based on guideline - endpoint is population growth (cell density). Based on yeild, growth rate and area under the growth curve","NOEC","NOEC","Based on guideline - appropriate controls required","Based on guideline - minimum of 4 replicates","USEPA Guideline 122-2 (superceded by USEPA (2012) OCSPP 850.4500)","Based on guideline - 10,000 cells/ml","Based on guideline - synthetic growth medium","Static","Not stated","Not stated","Not stated","Based on guideline - appropriate statistics required","Not stated","Not stated","Not stated","Not stated","Not stated","Not stated","99.2% purity "]